{"text_format":"1","workbook":"xlsx","n_sheets":3,"sheets":["Выборка","Доп","Дополняемый блок"],"not_rendered":{"charts":0,"images":0,"macros":1,"external_links":0,"defined_names":24,"comments":0,"pivot_tables":0},"unopened":[],"bounds":{"document_bytes":16777216,"sheet_cells":100000,"rows_first":2000,"rows_last":500,"rows_between":2000,"halvings":0,"cell_chars":16384,"cell_head_chars":4096},"cells_cut":0,"cells_raw":0,"read":"whole","date_system":"1900"}

{"sheet":"Выборка","index":0,"n_rows":86,"n_cols":17,"rows_kept":86,"cut":false,"hidden":false,"merged":[[0,14,0,16],[1,14,1,16],[2,14,2,16],[4,14,4,16]]}
[]
[]
[]
[]
[null,null,null,null,null,null,null,null,null,null,null,null,null,null,"Аналитическая информация по заявке"]
[null,null,null,null,null,null,null,null,null,null,null,null,null,null,"КОСГУ","Источник финансирования","Группа расходов"]
[null,null,null,null,null,null,null,null,null,null,null,null,null,null,340,"Внебюджет","хозтовары"]
[null,null,null,null,null,null,null,null,null,null,null,null,null,null,340,"Внебюджет","канцтовары"]
[null,null,null,null,null,null,null,null,null,null,null,null,null,null,340,"Внебюджет","канцтовары"]
[null,null,null,null,null,null,null,null,null,null,null,null,null,null,340,"Внебюджет","канцтовары"]
[null,null,null,null,null,null,null,null,null,null,null,null,null,null,226,"Внебюджет","программное обеспечение"]
[null,null,null,null,null,null,null,null,null,null,null,null,null,null,226,"Внебюджет","программное обеспечение"]
[null,null,null,null,null,null,null,null,null,null,null,null,null,null,226,"Внебюджет","охрана"]
[null,null,null,null,null,null,null,null,null,null,null,null,null,null,226,"Внебюджет","программное обеспечение"]
[null,null,null,null,null,null,null,null,null,null,null,null,null,null,223,"Внебюджет","водоснабжение"]
[null,null,null,null,null,null,null,null,null,null,null,null,null,null,223,"Внебюджет","водоснабжение"]
[null,null,null,null,null,null,null,null,null,null,null,null,null,null,223,"Внебюджет","теплоэнергия"]
[null,null,null,null,null,null,null,null,null,null,null,null,null,null,310,"Внебюджет","учебное оборудование"]
[null,null,null,null,null,null,null,null,null,null,null,null,null,null,310,"Внебюджет","учебное оборудование"]
[null,null,null,null,null,null,null,null,null,null,null,null,null,null,310,"Внебюджет","компьютеры"]
[null,null,null,null,null,null,null,null,null,null,null,null,null,null,225,"Внебюджет","то и ремонт оргтехники"]
[null,null,null,null,null,null,null,null,null,null,null,null,null,null,340,"Внебюджет","канцтовары"]
[null,null,null,null,null,null,null,null,null,null,null,null,null,null,225,"Внебюджет","то и ремонт офисной техники"]
[null,null,null,null,null,null,null,null,null,null,null,null,null,null,225,"Внебюджет","вывоз тбо"]
[null,null,null,null,null,null,null,null,null,null,null,null,null,null,223,"Внебюджет","коммунальные услуги"]
[null,null,null,null,null,null,null,null,null,null,null,null,null,null,226,"Внебюджет","банковское обслуживание"]
[null,null,null,null,null,null,null,null,null,null,null,null,null,null,221,"Внебюджет","телефонная связь"]
[null,null,null,null,null,null,null,null,null,null,null,null,null,null,221,"Внебюджет","телефонная связь"]
[null,null,null,null,null,null,null,null,null,null,null,null,null,null,221,"Внебюджет","телефонная связь"]
[null,null,null,null,null,null,null,null,null,null,null,null,null,null,223,"Внебюджет","электроэнергия"]
[null,null,null,null,null,null,null,null,null,null,null,null,null,null,221,"Внебюджет","телефонная связь"]
[null,null,null,null,null,null,null,null,null,null,null,null,null,null,226,"Внебюджет","монтаж автоматической пожарной сигнализации"]
[null,null,null,null,null,null,null,null,null,null,null,null,null,null,225,"Внебюджет","то средств охраны"]
[null,null,null,null,null,null,null,null,null,null,null,null,null,null,310,"Внебюджет","компьютеры"]
[null,null,null,null,null,null,null,null,null,null,null,null,null,null,226,"Внебюджет","страхование ОСАГО"]
[null,null,null,null,null,null,null,null,null,null,null,null,null,null,225,"Внебюджет","то и ремонт офисной техники"]
[null,null,null,null,null,null,null,null,null,null,null,null,null,null,226,"Внебюджет","охрана"]
[null,null,null,null,null,null,null,null,null,null,null,null,null,null,223,"Внебюджет","электроэнергия"]
[null,null,null,null,null,null,null,null,null,null,null,null,null,null,226,"Внебюджет","повышение квалификации"]
[null,null,null,null,null,null,null,null,null,null,null,null,null,null,226,"Внебюджет","программное обеспечение"]
[null,null,null,null,null,null,null,null,null,null,null,null,null,null,225,"Внебюджет","стирка белья"]
[null,null,null,null,null,null,null,null,null,null,null,null,null,null,223,"Внебюджет","теплоэнергия"]
[null,null,null,null,null,null,null,null,null,null,null,null,null,null,225,"Внебюджет","то газовой котельной"]
[null,null,null,null,null,null,null,null,null,null,null,null,null,null,226,"Внебюджет","полиграфические услуги"]
[null,null,null,null,null,null,null,null,null,null,null,null,null,null,340,"Внебюджет","бензин"]
[null,null,null,null,null,null,null,null,null,null,null,null,null,null,225,"Внебюджет","то пожарной сигнализации"]
[null,null,null,null,null,null,null,null,null,null,null,null,null,null,221,"Внебюджет","интернет"]
[null,null,null,null,null,null,null,null,null,null,null,null,null,null,226,"Внебюджет","повышение квалификации"]
[null,null,null,null,null,null,null,null,null,null,null,null,null,null,226,"Внебюджет","полиграфические услуги"]
[null,null,null,null,null,null,null,null,null,null,null,null,null,null,226,"Внебюджет","сертификация услуг"]
[null,null,null,null,null,null,null,null,null,null,null,null,null,null,226,"Внебюджет","сертификация услуг"]
[null,null,null,null,null,null,null,null,null,null,null,null,null,null,310,"Внебюджет","замена электросчетчика"]
[null,null,null,null,null,null,null,null,null,null,null,null,null,null,223,"Внебюджет","канализирование"]
[null,null,null,null,null,null,null,null,null,null,null,null,null,null,310,"Внебюджет","замена электросчетчика"]
[null,null,null,null,null,null,null,null,null,null,null,null,null,null,225,"Внебюджет","то лифтов"]
[null,null,null,null,null,null,null,null,null,null,null,null,null,null,226,"Внебюджет","медицинский осмотр"]
[null,null,null,null,null,null,null,null,null,null,null,null,null,null,223,"Внебюджет","водоснабжение"]
[null,null,null,null,null,null,null,null,null,null,null,null,null,null,340,"Внебюджет","канцтовары"]
[null,null,null,null,null,null,null,null,null,null,null,null,null,null,226,"Внебюджет","повышение квалификации"]
[null,null,null,null,null,null,null,null,null,null,null,null,null,null,226,"Внебюджет","повышение квалификации"]
[null,null,null,null,null,null,null,null,null,null,null,null,null,null,226,"Внебюджет","лабораторные исследования"]
[null,null,null,null,null,null,null,null,null,null,null,null,null,null,225,"Внебюджет","то газопровода"]
[null,null,null,null,null,null,null,null,null,null,null,null,null,null,225,"Внебюджет","ремонт и содержание имущества"]
[null,null,null,null,null,null,null,null,null,null,null,null,null,null,225,"Внебюджет","огнезащитная обработка, противопожарные мероприятия"]
[null,null,null,null,null,null,null,null,null,null,null,null,null,null,224,"Внебюджет","арендная плата (движимое имущество)"]
[null,null,null,null,null,null,null,null,null,null,null,null,null,null,225,"Внебюджет","дезинфекция, дезинсекция, дератизация"]
[null,null,null,null,null,null,null,null,null,null,null,null,null,null,226,"Внебюджет","экспресс-почта"]
[null,null,null,null,null,null,null,null,null,null,null,null,null,null,222,"Внебюджет","автотранспортное обслуживание"]
[null,null,null,null,null,null,null,null,null,null,null,null,null,null,225,"Внебюджет","вывоз тбо"]
[null,null,null,null,null,null,null,null,null,null,null,null,null,null,226,"Внебюджет","полиграфические услуги"]
[null,null,null,null,null,null,null,null,null,null,null,null,null,null,340,"Внебюджет","канцтовары"]
[null,null,null,null,null,null,null,null,null,null,null,null,null,null,310,"Внебюджет","оргтехника"]
[null,null,null,null,null,null,null,null,null,null,null,null,null,null,340,"Внебюджет","картриджи"]
[null,null,null,null,null,null,null,null,null,null,null,null,null,null,310,"Внебюджет","оргтехника"]
[null,null,null,null,null,null,null,null,null,null,null,null,null,null,222,"Внебюджет","автотранспортное обслуживание"]
[null,null,null,null,null,null,null,null,null,null,null,null,null,null,225,"Внебюджет","дезинфекция, дезинсекция, дератизация"]
[null,null,null,null,null,null,null,null,null,null,null,null,null,null,225,"Внебюджет","стирка белья"]
[null,null,null,null,null,null,null,null,null,null,null,null,null,null,225,"Внебюджет","демеркуризация люминисцентных ламп"]
[null,null,null,null,null,null,null,null,null,null,null,null,null,null,226,"Внебюджет","страхование ОСАГО"]
[null,null,null,null,null,null,null,null,null,null,null,null,null,null,340,"Внебюджет","бумага"]
[null,null,null,null,null,null,null,null,null,null,null,null,null,null,226,"Внебюджет","полиграфические услуги"]
[null,null,null,null,null,null,null,null,null,null,null,null,null,null,225,"Внебюджет","то пожарной сигнализации"]
[null,null,null,null,null,null,null,null,null,null,null,null,null,null,224,"Внебюджет","арендная плата (движимое имущество)"]
[null,null,null,null,null,null,null,null,null,null,null,null,null,null,225,"Внебюджет","вывоз тбо"]
[null,null,null,null,null,null,null,null,null,null,null,null,null,null,225,"Внебюджет","стирка белья"]
[null,null,null,null,null,null,null,null,null,null,null,null,null,null,226]

{"sheet":"Доп","index":1,"n_rows":90,"n_cols":10,"rows_kept":90,"cut":false,"hidden":true,"merged":[]}
[null,221,222,223,224,225,226,290,310,340]
[null,{"$f":"IFERROR(LOOKUP(,-1/ISERROR(MATCH(Предмет_договора,B$1:B1,))/(КОСГУ=B$1),Предмет_договора),)","v":"услуги связи скс"},{"$f":"IFERROR(LOOKUP(,-1/ISERROR(MATCH(Предмет_договора,C$1:C1,))/(КОСГУ=C$1),Предмет_договора),)","v":"автотранспортное обслуживание"},{"$f":"IFERROR(LOOKUP(,-1/ISERROR(MATCH(Предмет_договора,D$1:D1,))/(КОСГУ=D$1),Предмет_договора),)","v":"электроэнергия"},{"$f":"IFERROR(LOOKUP(,-1/ISERROR(MATCH(Предмет_договора,E$1:E1,))/(КОСГУ=E$1),Предмет_договора),)","v":"арендная плата (недвижимое имущество)"},{"$f":"IFERROR(LOOKUP(,-1/ISERROR(MATCH(Предмет_договора,F$1:F1,))/(КОСГУ=F$1),Предмет_договора),)","v":"хоз-техническое обслуживание помещений"},{"$f":"IFERROR(LOOKUP(,-1/ISERROR(MATCH(Предмет_договора,G$1:G1,))/(КОСГУ=G$1),Предмет_договора),)","v":"юридические услуги"},{"$f":"IFERROR(LOOKUP(,-1/ISERROR(MATCH(Предмет_договора,H$1:H1,))/(КОСГУ=H$1),Предмет_договора),)","v":"услуги по составлению букетов"},{"$f":"IFERROR(LOOKUP(,-1/ISERROR(MATCH(Предмет_договора,I$1:I1,))/(КОСГУ=I$1),Предмет_договора),)","v":"шторы, карнизы"},{"$f":"IFERROR(LOOKUP(,-1/ISERROR(MATCH(Предмет_договора,J$1:J1,))/(КОСГУ=J$1),Предмет_договора),)","v":"канцтовары"}]
[null,{"$f":"IFERROR(LOOKUP(,-1/ISERROR(MATCH(Предмет_договора,B$1:B2,))/(КОСГУ=B$1),Предмет_договора),)","v":"мобильная связь"},{"$f":"IFERROR(LOOKUP(,-1/ISERROR(MATCH(Предмет_договора,C$1:C2,))/(КОСГУ=C$1),Предмет_договора),)","v":0},{"$f":"IFERROR(LOOKUP(,-1/ISERROR(MATCH(Предмет_договора,D$1:D2,))/(КОСГУ=D$1),Предмет_договора),)","v":"транспортировка газа"},{"$f":"IFERROR(LOOKUP(,-1/ISERROR(MATCH(Предмет_договора,E$1:E2,))/(КОСГУ=E$1),Предмет_договора),)","v":"арендная плата (движимое имущество)"},{"$f":"IFERROR(LOOKUP(,-1/ISERROR(MATCH(Предмет_договора,F$1:F2,))/(КОСГУ=F$1),Предмет_договора),)","v":"услуги по содержанию зданий и территорий"},{"$f":"IFERROR(LOOKUP(,-1/ISERROR(MATCH(Предмет_договора,G$1:G2,))/(КОСГУ=G$1),Предмет_договора),)","v":"экспресс-почта"},{"$f":"IFERROR(LOOKUP(,-1/ISERROR(MATCH(Предмет_договора,H$1:H2,))/(КОСГУ=H$1),Предмет_договора),)","v":0},{"$f":"IFERROR(LOOKUP(,-1/ISERROR(MATCH(Предмет_договора,I$1:I2,))/(КОСГУ=I$1),Предмет_договора),)","v":"телефонные аппараты, коммутатор"},{"$f":"IFERROR(LOOKUP(,-1/ISERROR(MATCH(Предмет_договора,J$1:J2,))/(КОСГУ=J$1),Предмет_договора),)","v":"электротехнические товары"}]
[null,{"$f":"IFERROR(LOOKUP(,-1/ISERROR(MATCH(Предмет_договора,B$1:B3,))/(КОСГУ=B$1),Предмет_договора),)","v":"телефонная связь"},{"$f":"IFERROR(LOOKUP(,-1/ISERROR(MATCH(Предмет_договора,C$1:C3,))/(КОСГУ=C$1),Предмет_договора),)","v":0},{"$f":"IFERROR(LOOKUP(,-1/ISERROR(MATCH(Предмет_договора,D$1:D3,))/(КОСГУ=D$1),Предмет_договора),)","v":"теплоэнергия"},{"$f":"IFERROR(LOOKUP(,-1/ISERROR(MATCH(Предмет_договора,E$1:E3,))/(КОСГУ=E$1),Предмет_договора),)","v":0},{"$f":"IFERROR(LOOKUP(,-1/ISERROR(MATCH(Предмет_договора,F$1:F3,))/(КОСГУ=F$1),Предмет_договора),)","v":"тревожная кнопка"},{"$f":"IFERROR(LOOKUP(,-1/ISERROR(MATCH(Предмет_договора,G$1:G3,))/(КОСГУ=G$1),Предмет_договора),)","v":"услуги систем \"консультантплюс\""},{"$f":"IFERROR(LOOKUP(,-1/ISERROR(MATCH(Предмет_договора,H$1:H3,))/(КОСГУ=H$1),Предмет_договора),)","v":0},{"$f":"IFERROR(LOOKUP(,-1/ISERROR(MATCH(Предмет_договора,I$1:I3,))/(КОСГУ=I$1),Предмет_договора),)","v":"сборно-разбрные перегородки"},{"$f":"IFERROR(LOOKUP(,-1/ISERROR(MATCH(Предмет_договора,J$1:J3,))/(КОСГУ=J$1),Предмет_договора),)","v":"хозтовары"}]
[null,{"$f":"IFERROR(LOOKUP(,-1/ISERROR(MATCH(Предмет_договора,B$1:B4,))/(КОСГУ=B$1),Предмет_договора),)","v":"интернет"},{"$f":"IFERROR(LOOKUP(,-1/ISERROR(MATCH(Предмет_договора,C$1:C4,))/(КОСГУ=C$1),Предмет_договора),)","v":0},{"$f":"IFERROR(LOOKUP(,-1/ISERROR(MATCH(Предмет_договора,D$1:D4,))/(КОСГУ=D$1),Предмет_договора),)","v":"коммунальные услуги"},{"$f":"IFERROR(LOOKUP(,-1/ISERROR(MATCH(Предмет_договора,E$1:E4,))/(КОСГУ=E$1),Предмет_договора),)","v":0},{"$f":"IFERROR(LOOKUP(,-1/ISERROR(MATCH(Предмет_договора,F$1:F4,))/(КОСГУ=F$1),Предмет_договора),)","v":"то транспортных средств"},{"$f":"IFERROR(LOOKUP(,-1/ISERROR(MATCH(Предмет_договора,G$1:G4,))/(КОСГУ=G$1),Предмет_договора),)","v":"услуги по регистрации сми"},{"$f":"IFERROR(LOOKUP(,-1/ISERROR(MATCH(Предмет_договора,H$1:H4,))/(КОСГУ=H$1),Предмет_договора),)","v":0},{"$f":"IFERROR(LOOKUP(,-1/ISERROR(MATCH(Предмет_договора,I$1:I4,))/(КОСГУ=I$1),Предмет_договора),)","v":"оргтехника"},{"$f":"IFERROR(LOOKUP(,-1/ISERROR(MATCH(Предмет_договора,J$1:J4,))/(КОСГУ=J$1),Предмет_договора),)","v":"сантехнические товары"}]
[null,{"$f":"IFERROR(LOOKUP(,-1/ISERROR(MATCH(Предмет_договора,B$1:B5,))/(КОСГУ=B$1),Предмет_договора),)","v":0},{"$f":"IFERROR(LOOKUP(,-1/ISERROR(MATCH(Предмет_договора,C$1:C5,))/(КОСГУ=C$1),Предмет_договора),)","v":0},{"$f":"IFERROR(LOOKUP(,-1/ISERROR(MATCH(Предмет_договора,D$1:D5,))/(КОСГУ=D$1),Предмет_договора),)","v":"канализирование"},{"$f":"IFERROR(LOOKUP(,-1/ISERROR(MATCH(Предмет_договора,E$1:E5,))/(КОСГУ=E$1),Предмет_договора),)","v":0},{"$f":"IFERROR(LOOKUP(,-1/ISERROR(MATCH(Предмет_договора,F$1:F5,))/(КОСГУ=F$1),Предмет_договора),)","v":"то средств охраны"},{"$f":"IFERROR(LOOKUP(,-1/ISERROR(MATCH(Предмет_договора,G$1:G5,))/(КОСГУ=G$1),Предмет_договора),)","v":"услуги по подготовке команды квн"},{"$f":"IFERROR(LOOKUP(,-1/ISERROR(MATCH(Предмет_договора,H$1:H5,))/(КОСГУ=H$1),Предмет_договора),)","v":0},{"$f":"IFERROR(LOOKUP(,-1/ISERROR(MATCH(Предмет_договора,I$1:I5,))/(КОСГУ=I$1),Предмет_договора),)","v":"монтаж системы кондиционирования"},{"$f":"IFERROR(LOOKUP(,-1/ISERROR(MATCH(Предмет_договора,J$1:J5,))/(КОСГУ=J$1),Предмет_договора),)","v":"расходные материалы для полиграфического оборудования"}]
[null,{"$f":"IFERROR(LOOKUP(,-1/ISERROR(MATCH(Предмет_договора,B$1:B6,))/(КОСГУ=B$1),Предмет_договора),)","v":0},{"$f":"IFERROR(LOOKUP(,-1/ISERROR(MATCH(Предмет_договора,C$1:C6,))/(КОСГУ=C$1),Предмет_договора),)","v":0},{"$f":"IFERROR(LOOKUP(,-1/ISERROR(MATCH(Предмет_договора,D$1:D6,))/(КОСГУ=D$1),Предмет_договора),)","v":"горячая вода"},{"$f":"IFERROR(LOOKUP(,-1/ISERROR(MATCH(Предмет_договора,E$1:E6,))/(КОСГУ=E$1),Предмет_договора),)","v":0},{"$f":"IFERROR(LOOKUP(,-1/ISERROR(MATCH(Предмет_договора,F$1:F6,))/(КОСГУ=F$1),Предмет_договора),)","v":"то приборов учета расхода газа"},{"$f":"IFERROR(LOOKUP(,-1/ISERROR(MATCH(Предмет_договора,G$1:G6,))/(КОСГУ=G$1),Предмет_договора),)","v":"услуги по организации участия в выставке \"образование и карьера\""},{"$f":"IFERROR(LOOKUP(,-1/ISERROR(MATCH(Предмет_договора,H$1:H6,))/(КОСГУ=H$1),Предмет_договора),)","v":0},{"$f":"IFERROR(LOOKUP(,-1/ISERROR(MATCH(Предмет_договора,I$1:I6,))/(КОСГУ=I$1),Предмет_договора),)","v":"моноблок kraftway"},{"$f":"IFERROR(LOOKUP(,-1/ISERROR(MATCH(Предмет_договора,J$1:J6,))/(КОСГУ=J$1),Предмет_договора),)","v":"продукты питания"}]
[null,{"$f":"IFERROR(LOOKUP(,-1/ISERROR(MATCH(Предмет_договора,B$1:B7,))/(КОСГУ=B$1),Предмет_договора),)","v":0},{"$f":"IFERROR(LOOKUP(,-1/ISERROR(MATCH(Предмет_договора,C$1:C7,))/(КОСГУ=C$1),Предмет_договора),)","v":0},{"$f":"IFERROR(LOOKUP(,-1/ISERROR(MATCH(Предмет_договора,D$1:D7,))/(КОСГУ=D$1),Предмет_договора),)","v":"газоснабжение"},{"$f":"IFERROR(LOOKUP(,-1/ISERROR(MATCH(Предмет_договора,E$1:E7,))/(КОСГУ=E$1),Предмет_договора),)","v":0},{"$f":"IFERROR(LOOKUP(,-1/ISERROR(MATCH(Предмет_договора,F$1:F7,))/(КОСГУ=F$1),Предмет_договора),)","v":"то пожарной сигнализации"},{"$f":"IFERROR(LOOKUP(,-1/ISERROR(MATCH(Предмет_договора,G$1:G7,))/(КОСГУ=G$1),Предмет_договора),)","v":"услуги по гардеробному обслуживанию"},{"$f":"IFERROR(LOOKUP(,-1/ISERROR(MATCH(Предмет_договора,H$1:H7,))/(КОСГУ=H$1),Предмет_договора),)","v":0},{"$f":"IFERROR(LOOKUP(,-1/ISERROR(MATCH(Предмет_договора,I$1:I7,))/(КОСГУ=I$1),Предмет_договора),)","v":"учебное оборудование"},{"$f":"IFERROR(LOOKUP(,-1/ISERROR(MATCH(Предмет_договора,J$1:J7,))/(КОСГУ=J$1),Предмет_договора),)","v":"питьевая вода"}]
[null,{"$f":"IFERROR(LOOKUP(,-1/ISERROR(MATCH(Предмет_договора,B$1:B8,))/(КОСГУ=B$1),Предмет_договора),)","v":0},{"$f":"IFERROR(LOOKUP(,-1/ISERROR(MATCH(Предмет_договора,C$1:C8,))/(КОСГУ=C$1),Предмет_договора),)","v":0},{"$f":"IFERROR(LOOKUP(,-1/ISERROR(MATCH(Предмет_договора,D$1:D8,))/(КОСГУ=D$1),Предмет_договора),)","v":"водоснабжение"},{"$f":"IFERROR(LOOKUP(,-1/ISERROR(MATCH(Предмет_договора,E$1:E8,))/(КОСГУ=E$1),Предмет_договора),)","v":0},{"$f":"IFERROR(LOOKUP(,-1/ISERROR(MATCH(Предмет_договора,F$1:F8,))/(КОСГУ=F$1),Предмет_договора),)","v":"то медицинской техники"},{"$f":"IFERROR(LOOKUP(,-1/ISERROR(MATCH(Предмет_договора,G$1:G8,))/(КОСГУ=G$1),Предмет_договора),)","v":"тренинговая программа \"открытие\""},{"$f":"IFERROR(LOOKUP(,-1/ISERROR(MATCH(Предмет_договора,H$1:H8,))/(КОСГУ=H$1),Предмет_договора),)","v":0},{"$f":"IFERROR(LOOKUP(,-1/ISERROR(MATCH(Предмет_договора,I$1:I8,))/(КОСГУ=I$1),Предмет_договора),)","v":"мебель"},{"$f":"IFERROR(LOOKUP(,-1/ISERROR(MATCH(Предмет_договора,J$1:J8,))/(КОСГУ=J$1),Предмет_договора),)","v":"медицинские товары"}]
[null,{"$f":"IFERROR(LOOKUP(,-1/ISERROR(MATCH(Предмет_договора,B$1:B9,))/(КОСГУ=B$1),Предмет_договора),)","v":0},{"$f":"IFERROR(LOOKUP(,-1/ISERROR(MATCH(Предмет_договора,C$1:C9,))/(КОСГУ=C$1),Предмет_договора),)","v":0},{"$f":"IFERROR(LOOKUP(,-1/ISERROR(MATCH(Предмет_договора,D$1:D9,))/(КОСГУ=D$1),Предмет_договора),)","v":0},{"$f":"IFERROR(LOOKUP(,-1/ISERROR(MATCH(Предмет_договора,E$1:E9,))/(КОСГУ=E$1),Предмет_договора),)","v":0},{"$f":"IFERROR(LOOKUP(,-1/ISERROR(MATCH(Предмет_договора,F$1:F9,))/(КОСГУ=F$1),Предмет_договора),)","v":"то лифтов"},{"$f":"IFERROR(LOOKUP(,-1/ISERROR(MATCH(Предмет_договора,G$1:G9,))/(КОСГУ=G$1),Предмет_договора),)","v":"тревожная кнопка"},{"$f":"IFERROR(LOOKUP(,-1/ISERROR(MATCH(Предмет_договора,H$1:H9,))/(КОСГУ=H$1),Предмет_договора),)","v":0},{"$f":"IFERROR(LOOKUP(,-1/ISERROR(MATCH(Предмет_договора,I$1:I9,))/(КОСГУ=I$1),Предмет_договора),)","v":"компьютеры"},{"$f":"IFERROR(LOOKUP(,-1/ISERROR(MATCH(Предмет_договора,J$1:J9,))/(КОСГУ=J$1),Предмет_договора),)","v":"компьютерные комплектующие"}]
[null,{"$f":"IFERROR(LOOKUP(,-1/ISERROR(MATCH(Предмет_договора,B$1:B10,))/(КОСГУ=B$1),Предмет_договора),)","v":0},{"$f":"IFERROR(LOOKUP(,-1/ISERROR(MATCH(Предмет_договора,C$1:C10,))/(КОСГУ=C$1),Предмет_договора),)","v":0},{"$f":"IFERROR(LOOKUP(,-1/ISERROR(MATCH(Предмет_договора,D$1:D10,))/(КОСГУ=D$1),Предмет_договора),)","v":0},{"$f":"IFERROR(LOOKUP(,-1/ISERROR(MATCH(Предмет_договора,E$1:E10,))/(КОСГУ=E$1),Предмет_договора),)","v":0},{"$f":"IFERROR(LOOKUP(,-1/ISERROR(MATCH(Предмет_договора,F$1:F10,))/(КОСГУ=F$1),Предмет_договора),)","v":"то климатической техники"},{"$f":"IFERROR(LOOKUP(,-1/ISERROR(MATCH(Предмет_договора,G$1:G10,))/(КОСГУ=G$1),Предмет_договора),)","v":"то электросетей"},{"$f":"IFERROR(LOOKUP(,-1/ISERROR(MATCH(Предмет_договора,H$1:H10,))/(КОСГУ=H$1),Предмет_договора),)","v":0},{"$f":"IFERROR(LOOKUP(,-1/ISERROR(MATCH(Предмет_договора,I$1:I10,))/(КОСГУ=I$1),Предмет_договора),)","v":"замена электросчетчика"},{"$f":"IFERROR(LOOKUP(,-1/ISERROR(MATCH(Предмет_договора,J$1:J10,))/(КОСГУ=J$1),Предмет_договора),)","v":"картриджи"}]
[null,{"$f":"IFERROR(LOOKUP(,-1/ISERROR(MATCH(Предмет_договора,B$1:B11,))/(КОСГУ=B$1),Предмет_договора),)","v":0},{"$f":"IFERROR(LOOKUP(,-1/ISERROR(MATCH(Предмет_договора,C$1:C11,))/(КОСГУ=C$1),Предмет_договора),)","v":0},{"$f":"IFERROR(LOOKUP(,-1/ISERROR(MATCH(Предмет_договора,D$1:D11,))/(КОСГУ=D$1),Предмет_договора),)","v":0},{"$f":"IFERROR(LOOKUP(,-1/ISERROR(MATCH(Предмет_договора,E$1:E11,))/(КОСГУ=E$1),Предмет_договора),)","v":0},{"$f":"IFERROR(LOOKUP(,-1/ISERROR(MATCH(Предмет_договора,F$1:F11,))/(КОСГУ=F$1),Предмет_договора),)","v":"то и ремонт офисной техники"},{"$f":"IFERROR(LOOKUP(,-1/ISERROR(MATCH(Предмет_договора,G$1:G11,))/(КОСГУ=G$1),Предмет_договора),)","v":"то вентиляционных систем"},{"$f":"IFERROR(LOOKUP(,-1/ISERROR(MATCH(Предмет_договора,H$1:H11,))/(КОСГУ=H$1),Предмет_договора),)","v":0},{"$f":"IFERROR(LOOKUP(,-1/ISERROR(MATCH(Предмет_договора,I$1:I11,))/(КОСГУ=I$1),Предмет_договора),)","v":0},{"$f":"IFERROR(LOOKUP(,-1/ISERROR(MATCH(Предмет_договора,J$1:J11,))/(КОСГУ=J$1),Предмет_договора),)","v":"изготовление печати"}]
[null,{"$f":"IFERROR(LOOKUP(,-1/ISERROR(MATCH(Предмет_договора,B$1:B12,))/(КОСГУ=B$1),Предмет_договора),)","v":0},{"$f":"IFERROR(LOOKUP(,-1/ISERROR(MATCH(Предмет_договора,C$1:C12,))/(КОСГУ=C$1),Предмет_договора),)","v":0},{"$f":"IFERROR(LOOKUP(,-1/ISERROR(MATCH(Предмет_договора,D$1:D12,))/(КОСГУ=D$1),Предмет_договора),)","v":0},{"$f":"IFERROR(LOOKUP(,-1/ISERROR(MATCH(Предмет_договора,E$1:E12,))/(КОСГУ=E$1),Предмет_договора),)","v":0},{"$f":"IFERROR(LOOKUP(,-1/ISERROR(MATCH(Предмет_договора,F$1:F12,))/(КОСГУ=F$1),Предмет_договора),)","v":"то газопровода"},{"$f":"IFERROR(LOOKUP(,-1/ISERROR(MATCH(Предмет_договора,G$1:G12,))/(КОСГУ=G$1),Предмет_договора),)","v":"технический учет и инвентаризация"},{"$f":"IFERROR(LOOKUP(,-1/ISERROR(MATCH(Предмет_договора,H$1:H12,))/(КОСГУ=H$1),Предмет_договора),)","v":0},{"$f":"IFERROR(LOOKUP(,-1/ISERROR(MATCH(Предмет_договора,I$1:I12,))/(КОСГУ=I$1),Предмет_договора),)","v":0},{"$f":"IFERROR(LOOKUP(,-1/ISERROR(MATCH(Предмет_договора,J$1:J12,))/(КОСГУ=J$1),Предмет_договора),)","v":"запчасти"}]
[null,{"$f":"IFERROR(LOOKUP(,-1/ISERROR(MATCH(Предмет_договора,B$1:B13,))/(КОСГУ=B$1),Предмет_договора),)","v":0},{"$f":"IFERROR(LOOKUP(,-1/ISERROR(MATCH(Предмет_договора,C$1:C13,))/(КОСГУ=C$1),Предмет_договора),)","v":0},{"$f":"IFERROR(LOOKUP(,-1/ISERROR(MATCH(Предмет_договора,D$1:D13,))/(КОСГУ=D$1),Предмет_договора),)","v":0},{"$f":"IFERROR(LOOKUP(,-1/ISERROR(MATCH(Предмет_договора,E$1:E13,))/(КОСГУ=E$1),Предмет_договора),)","v":0},{"$f":"IFERROR(LOOKUP(,-1/ISERROR(MATCH(Предмет_договора,F$1:F13,))/(КОСГУ=F$1),Предмет_договора),)","v":"то газовой котельной"},{"$f":"IFERROR(LOOKUP(,-1/ISERROR(MATCH(Предмет_договора,G$1:G13,))/(КОСГУ=G$1),Предмет_договора),)","v":"банковское обслуживание"},{"$f":"IFERROR(LOOKUP(,-1/ISERROR(MATCH(Предмет_договора,H$1:H13,))/(КОСГУ=H$1),Предмет_договора),)","v":0},{"$f":"IFERROR(LOOKUP(,-1/ISERROR(MATCH(Предмет_договора,I$1:I13,))/(КОСГУ=I$1),Предмет_договора),)","v":0},{"$f":"IFERROR(LOOKUP(,-1/ISERROR(MATCH(Предмет_договора,J$1:J13,))/(КОСГУ=J$1),Предмет_договора),)","v":"дизельное топливо"}]
[null,{"$f":"IFERROR(LOOKUP(,-1/ISERROR(MATCH(Предмет_договора,B$1:B14,))/(КОСГУ=B$1),Предмет_договора),)","v":0},{"$f":"IFERROR(LOOKUP(,-1/ISERROR(MATCH(Предмет_договора,C$1:C14,))/(КОСГУ=C$1),Предмет_договора),)","v":0},{"$f":"IFERROR(LOOKUP(,-1/ISERROR(MATCH(Предмет_договора,D$1:D14,))/(КОСГУ=D$1),Предмет_договора),)","v":0},{"$f":"IFERROR(LOOKUP(,-1/ISERROR(MATCH(Предмет_договора,E$1:E14,))/(КОСГУ=E$1),Предмет_договора),)","v":0},{"$f":"IFERROR(LOOKUP(,-1/ISERROR(MATCH(Предмет_договора,F$1:F14,))/(КОСГУ=F$1),Предмет_договора),)","v":"то внутреннего противопожарного водопровода"},{"$f":"IFERROR(LOOKUP(,-1/ISERROR(MATCH(Предмет_договора,G$1:G14,))/(КОСГУ=G$1),Предмет_договора),)","v":"такелажные работы"},{"$f":"IFERROR(LOOKUP(,-1/ISERROR(MATCH(Предмет_договора,H$1:H14,))/(КОСГУ=H$1),Предмет_договора),)","v":0},{"$f":"IFERROR(LOOKUP(,-1/ISERROR(MATCH(Предмет_договора,I$1:I14,))/(КОСГУ=I$1),Предмет_договора),)","v":0},{"$f":"IFERROR(LOOKUP(,-1/ISERROR(MATCH(Предмет_договора,J$1:J14,))/(КОСГУ=J$1),Предмет_договора),)","v":"гсм"}]
[null,{"$f":"IFERROR(LOOKUP(,-1/ISERROR(MATCH(Предмет_договора,B$1:B15,))/(КОСГУ=B$1),Предмет_договора),)","v":0},{"$f":"IFERROR(LOOKUP(,-1/ISERROR(MATCH(Предмет_договора,C$1:C15,))/(КОСГУ=C$1),Предмет_договора),)","v":0},{"$f":"IFERROR(LOOKUP(,-1/ISERROR(MATCH(Предмет_договора,D$1:D15,))/(КОСГУ=D$1),Предмет_договора),)","v":0},{"$f":"IFERROR(LOOKUP(,-1/ISERROR(MATCH(Предмет_договора,E$1:E15,))/(КОСГУ=E$1),Предмет_договора),)","v":0},{"$f":"IFERROR(LOOKUP(,-1/ISERROR(MATCH(Предмет_договора,F$1:F15,))/(КОСГУ=F$1),Предмет_договора),)","v":"то вентиляционных систем"},{"$f":"IFERROR(LOOKUP(,-1/ISERROR(MATCH(Предмет_договора,G$1:G15,))/(КОСГУ=G$1),Предмет_договора),)","v":"сублецензионное вознаграждение"},{"$f":"IFERROR(LOOKUP(,-1/ISERROR(MATCH(Предмет_договора,H$1:H15,))/(КОСГУ=H$1),Предмет_договора),)","v":0},{"$f":"IFERROR(LOOKUP(,-1/ISERROR(MATCH(Предмет_договора,I$1:I15,))/(КОСГУ=I$1),Предмет_договора),)","v":0},{"$f":"IFERROR(LOOKUP(,-1/ISERROR(MATCH(Предмет_договора,J$1:J15,))/(КОСГУ=J$1),Предмет_договора),)","v":"бумага"}]
[null,{"$f":"IFERROR(LOOKUP(,-1/ISERROR(MATCH(Предмет_договора,B$1:B16,))/(КОСГУ=B$1),Предмет_договора),)","v":0},{"$f":"IFERROR(LOOKUP(,-1/ISERROR(MATCH(Предмет_договора,C$1:C16,))/(КОСГУ=C$1),Предмет_договора),)","v":0},{"$f":"IFERROR(LOOKUP(,-1/ISERROR(MATCH(Предмет_договора,D$1:D16,))/(КОСГУ=D$1),Предмет_договора),)","v":0},{"$f":"IFERROR(LOOKUP(,-1/ISERROR(MATCH(Предмет_договора,E$1:E16,))/(КОСГУ=E$1),Предмет_договора),)","v":0},{"$f":"IFERROR(LOOKUP(,-1/ISERROR(MATCH(Предмет_договора,F$1:F16,))/(КОСГУ=F$1),Предмет_договора),)","v":"то блокмодульной котельной"},{"$f":"IFERROR(LOOKUP(,-1/ISERROR(MATCH(Предмет_договора,G$1:G16,))/(КОСГУ=G$1),Предмет_договора),)","v":"стажировка студентов в чехии"},{"$f":"IFERROR(LOOKUP(,-1/ISERROR(MATCH(Предмет_договора,H$1:H16,))/(КОСГУ=H$1),Предмет_договора),)","v":0},{"$f":"IFERROR(LOOKUP(,-1/ISERROR(MATCH(Предмет_договора,I$1:I16,))/(КОСГУ=I$1),Предмет_договора),)","v":0},{"$f":"IFERROR(LOOKUP(,-1/ISERROR(MATCH(Предмет_договора,J$1:J16,))/(КОСГУ=J$1),Предмет_договора),)","v":"бензин"}]
[null,{"$f":"IFERROR(LOOKUP(,-1/ISERROR(MATCH(Предмет_договора,B$1:B17,))/(КОСГУ=B$1),Предмет_договора),)","v":0},{"$f":"IFERROR(LOOKUP(,-1/ISERROR(MATCH(Предмет_договора,C$1:C17,))/(КОСГУ=C$1),Предмет_договора),)","v":0},{"$f":"IFERROR(LOOKUP(,-1/ISERROR(MATCH(Предмет_договора,D$1:D17,))/(КОСГУ=D$1),Предмет_договора),)","v":0},{"$f":"IFERROR(LOOKUP(,-1/ISERROR(MATCH(Предмет_договора,E$1:E17,))/(КОСГУ=E$1),Предмет_договора),)","v":0},{"$f":"IFERROR(LOOKUP(,-1/ISERROR(MATCH(Предмет_договора,F$1:F17,))/(КОСГУ=F$1),Предмет_договора),)","v":"то автоматики водозаборного узла взу"},{"$f":"IFERROR(LOOKUP(,-1/ISERROR(MATCH(Предмет_договора,G$1:G17,))/(КОСГУ=G$1),Предмет_договора),)","v":"создание программного комплекса адаптированнного для локальных сетей общеобразовательных школ и сети интернет"},{"$f":"IFERROR(LOOKUP(,-1/ISERROR(MATCH(Предмет_договора,H$1:H17,))/(КОСГУ=H$1),Предмет_договора),)","v":0},{"$f":"IFERROR(LOOKUP(,-1/ISERROR(MATCH(Предмет_договора,I$1:I17,))/(КОСГУ=I$1),Предмет_договора),)","v":0},{"$f":"IFERROR(LOOKUP(,-1/ISERROR(MATCH(Предмет_договора,J$1:J17,))/(КОСГУ=J$1),Предмет_договора),)","v":"автозапчасти"}]
[null,{"$f":"IFERROR(LOOKUP(,-1/ISERROR(MATCH(Предмет_договора,B$1:B18,))/(КОСГУ=B$1),Предмет_договора),)","v":0},{"$f":"IFERROR(LOOKUP(,-1/ISERROR(MATCH(Предмет_договора,C$1:C18,))/(КОСГУ=C$1),Предмет_договора),)","v":0},{"$f":"IFERROR(LOOKUP(,-1/ISERROR(MATCH(Предмет_договора,D$1:D18,))/(КОСГУ=D$1),Предмет_договора),)","v":0},{"$f":"IFERROR(LOOKUP(,-1/ISERROR(MATCH(Предмет_договора,E$1:E18,))/(КОСГУ=E$1),Предмет_договора),)","v":0},{"$f":"IFERROR(LOOKUP(,-1/ISERROR(MATCH(Предмет_договора,F$1:F18,))/(КОСГУ=F$1),Предмет_договора),)","v":"стирка белья"},{"$f":"IFERROR(LOOKUP(,-1/ISERROR(MATCH(Предмет_договора,G$1:G18,))/(КОСГУ=G$1),Предмет_договора),)","v":"силы реагирования на чс"},{"$f":"IFERROR(LOOKUP(,-1/ISERROR(MATCH(Предмет_договора,H$1:H18,))/(КОСГУ=H$1),Предмет_договора),)","v":0},{"$f":"IFERROR(LOOKUP(,-1/ISERROR(MATCH(Предмет_договора,I$1:I18,))/(КОСГУ=I$1),Предмет_договора),)","v":0},{"$f":"IFERROR(LOOKUP(,-1/ISERROR(MATCH(Предмет_договора,J$1:J18,))/(КОСГУ=J$1),Предмет_договора),)","v":0}]
[null,{"$f":"IFERROR(LOOKUP(,-1/ISERROR(MATCH(Предмет_договора,B$1:B19,))/(КОСГУ=B$1),Предмет_договора),)","v":0},{"$f":"IFERROR(LOOKUP(,-1/ISERROR(MATCH(Предмет_договора,C$1:C19,))/(КОСГУ=C$1),Предмет_договора),)","v":0},{"$f":"IFERROR(LOOKUP(,-1/ISERROR(MATCH(Предмет_договора,D$1:D19,))/(КОСГУ=D$1),Предмет_договора),)","v":0},{"$f":"IFERROR(LOOKUP(,-1/ISERROR(MATCH(Предмет_договора,E$1:E19,))/(КОСГУ=E$1),Предмет_договора),)","v":0},{"$f":"IFERROR(LOOKUP(,-1/ISERROR(MATCH(Предмет_договора,F$1:F19,))/(КОСГУ=F$1),Предмет_договора),)","v":"содержание зданий и территорий"},{"$f":"IFERROR(LOOKUP(,-1/ISERROR(MATCH(Предмет_договора,G$1:G19,))/(КОСГУ=G$1),Предмет_договора),)","v":"связь,коммуникации"},{"$f":"IFERROR(LOOKUP(,-1/ISERROR(MATCH(Предмет_договора,H$1:H19,))/(КОСГУ=H$1),Предмет_договора),)","v":0},{"$f":"IFERROR(LOOKUP(,-1/ISERROR(MATCH(Предмет_договора,I$1:I19,))/(КОСГУ=I$1),Предмет_договора),)","v":0},{"$f":"IFERROR(LOOKUP(,-1/ISERROR(MATCH(Предмет_договора,J$1:J19,))/(КОСГУ=J$1),Предмет_договора),)","v":0}]
[null,{"$f":"IFERROR(LOOKUP(,-1/ISERROR(MATCH(Предмет_договора,B$1:B20,))/(КОСГУ=B$1),Предмет_договора),)","v":0},{"$f":"IFERROR(LOOKUP(,-1/ISERROR(MATCH(Предмет_договора,C$1:C20,))/(КОСГУ=C$1),Предмет_договора),)","v":0},{"$f":"IFERROR(LOOKUP(,-1/ISERROR(MATCH(Предмет_договора,D$1:D20,))/(КОСГУ=D$1),Предмет_договора),)","v":0},{"$f":"IFERROR(LOOKUP(,-1/ISERROR(MATCH(Предмет_договора,E$1:E20,))/(КОСГУ=E$1),Предмет_договора),)","v":0},{"$f":"IFERROR(LOOKUP(,-1/ISERROR(MATCH(Предмет_договора,F$1:F20,))/(КОСГУ=F$1),Предмет_договора),)","v":"ремонт фасада"},{"$f":"IFERROR(LOOKUP(,-1/ISERROR(MATCH(Предмет_договора,G$1:G20,))/(КОСГУ=G$1),Предмет_договора),)","v":"сертификация услуг"},{"$f":"IFERROR(LOOKUP(,-1/ISERROR(MATCH(Предмет_договора,H$1:H20,))/(КОСГУ=H$1),Предмет_договора),)","v":0},{"$f":"IFERROR(LOOKUP(,-1/ISERROR(MATCH(Предмет_договора,I$1:I20,))/(КОСГУ=I$1),Предмет_договора),)","v":0},{"$f":"IFERROR(LOOKUP(,-1/ISERROR(MATCH(Предмет_договора,J$1:J20,))/(КОСГУ=J$1),Предмет_договора),)","v":0}]
[null,{"$f":"IFERROR(LOOKUP(,-1/ISERROR(MATCH(Предмет_договора,B$1:B21,))/(КОСГУ=B$1),Предмет_договора),)","v":0},{"$f":"IFERROR(LOOKUP(,-1/ISERROR(MATCH(Предмет_договора,C$1:C21,))/(КОСГУ=C$1),Предмет_договора),)","v":0},{"$f":"IFERROR(LOOKUP(,-1/ISERROR(MATCH(Предмет_договора,D$1:D21,))/(КОСГУ=D$1),Предмет_договора),)","v":0},{"$f":"IFERROR(LOOKUP(,-1/ISERROR(MATCH(Предмет_договора,E$1:E21,))/(КОСГУ=E$1),Предмет_договора),)","v":0},{"$f":"IFERROR(LOOKUP(,-1/ISERROR(MATCH(Предмет_договора,F$1:F21,))/(КОСГУ=F$1),Предмет_договора),)","v":"ремонт транспортных средств"},{"$f":"IFERROR(LOOKUP(,-1/ISERROR(MATCH(Предмет_договора,G$1:G21,))/(КОСГУ=G$1),Предмет_договора),)","v":"реклама"},{"$f":"IFERROR(LOOKUP(,-1/ISERROR(MATCH(Предмет_договора,H$1:H21,))/(КОСГУ=H$1),Предмет_договора),)","v":0},{"$f":"IFERROR(LOOKUP(,-1/ISERROR(MATCH(Предмет_договора,I$1:I21,))/(КОСГУ=I$1),Предмет_договора),)","v":0},{"$f":"IFERROR(LOOKUP(,-1/ISERROR(MATCH(Предмет_договора,J$1:J21,))/(КОСГУ=J$1),Предмет_договора),)","v":0}]
[null,{"$f":"IFERROR(LOOKUP(,-1/ISERROR(MATCH(Предмет_договора,B$1:B22,))/(КОСГУ=B$1),Предмет_договора),)","v":0},{"$f":"IFERROR(LOOKUP(,-1/ISERROR(MATCH(Предмет_договора,C$1:C22,))/(КОСГУ=C$1),Предмет_договора),)","v":0},{"$f":"IFERROR(LOOKUP(,-1/ISERROR(MATCH(Предмет_договора,D$1:D22,))/(КОСГУ=D$1),Предмет_договора),)","v":0},{"$f":"IFERROR(LOOKUP(,-1/ISERROR(MATCH(Предмет_договора,E$1:E22,))/(КОСГУ=E$1),Предмет_договора),)","v":0},{"$f":"IFERROR(LOOKUP(,-1/ISERROR(MATCH(Предмет_договора,F$1:F22,))/(КОСГУ=F$1),Предмет_договора),)","v":"ремонт сантех помещений"},{"$f":"IFERROR(LOOKUP(,-1/ISERROR(MATCH(Предмет_договора,G$1:G22,))/(КОСГУ=G$1),Предмет_договора),)","v":"разработка и распечатка плана эвакуации"},{"$f":"IFERROR(LOOKUP(,-1/ISERROR(MATCH(Предмет_договора,H$1:H22,))/(КОСГУ=H$1),Предмет_договора),)","v":0},{"$f":"IFERROR(LOOKUP(,-1/ISERROR(MATCH(Предмет_договора,I$1:I22,))/(КОСГУ=I$1),Предмет_договора),)","v":0},{"$f":"IFERROR(LOOKUP(,-1/ISERROR(MATCH(Предмет_договора,J$1:J22,))/(КОСГУ=J$1),Предмет_договора),)","v":0}]
[null,{"$f":"IFERROR(LOOKUP(,-1/ISERROR(MATCH(Предмет_договора,B$1:B23,))/(КОСГУ=B$1),Предмет_договора),)","v":0},{"$f":"IFERROR(LOOKUP(,-1/ISERROR(MATCH(Предмет_договора,C$1:C23,))/(КОСГУ=C$1),Предмет_договора),)","v":0},{"$f":"IFERROR(LOOKUP(,-1/ISERROR(MATCH(Предмет_договора,D$1:D23,))/(КОСГУ=D$1),Предмет_договора),)","v":0},{"$f":"IFERROR(LOOKUP(,-1/ISERROR(MATCH(Предмет_договора,E$1:E23,))/(КОСГУ=E$1),Предмет_договора),)","v":0},{"$f":"IFERROR(LOOKUP(,-1/ISERROR(MATCH(Предмет_договора,F$1:F23,))/(КОСГУ=F$1),Предмет_договора),)","v":"ремонт розеточной сети и освещения"},{"$f":"IFERROR(LOOKUP(,-1/ISERROR(MATCH(Предмет_договора,G$1:G23,))/(КОСГУ=G$1),Предмет_договора),)","v":"размещение кабелей связи"},{"$f":"IFERROR(LOOKUP(,-1/ISERROR(MATCH(Предмет_договора,H$1:H23,))/(КОСГУ=H$1),Предмет_договора),)","v":0},{"$f":"IFERROR(LOOKUP(,-1/ISERROR(MATCH(Предмет_договора,I$1:I23,))/(КОСГУ=I$1),Предмет_договора),)","v":0},{"$f":"IFERROR(LOOKUP(,-1/ISERROR(MATCH(Предмет_договора,J$1:J23,))/(КОСГУ=J$1),Предмет_договора),)","v":0}]
[null,{"$f":"IFERROR(LOOKUP(,-1/ISERROR(MATCH(Предмет_договора,B$1:B24,))/(КОСГУ=B$1),Предмет_договора),)","v":0},{"$f":"IFERROR(LOOKUP(,-1/ISERROR(MATCH(Предмет_договора,C$1:C24,))/(КОСГУ=C$1),Предмет_договора),)","v":0},{"$f":"IFERROR(LOOKUP(,-1/ISERROR(MATCH(Предмет_договора,D$1:D24,))/(КОСГУ=D$1),Предмет_договора),)","v":0},{"$f":"IFERROR(LOOKUP(,-1/ISERROR(MATCH(Предмет_договора,E$1:E24,))/(КОСГУ=E$1),Предмет_договора),)","v":0},{"$f":"IFERROR(LOOKUP(,-1/ISERROR(MATCH(Предмет_договора,F$1:F24,))/(КОСГУ=F$1),Предмет_договора),)","v":"ремонт офисных помещений"},{"$f":"IFERROR(LOOKUP(,-1/ISERROR(MATCH(Предмет_договора,G$1:G24,))/(КОСГУ=G$1),Предмет_договора),)","v":"программное обеспечение"},{"$f":"IFERROR(LOOKUP(,-1/ISERROR(MATCH(Предмет_договора,H$1:H24,))/(КОСГУ=H$1),Предмет_договора),)","v":0},{"$f":"IFERROR(LOOKUP(,-1/ISERROR(MATCH(Предмет_договора,I$1:I24,))/(КОСГУ=I$1),Предмет_договора),)","v":0},{"$f":"IFERROR(LOOKUP(,-1/ISERROR(MATCH(Предмет_договора,J$1:J24,))/(КОСГУ=J$1),Предмет_договора),)","v":0}]
[null,{"$f":"IFERROR(LOOKUP(,-1/ISERROR(MATCH(Предмет_договора,B$1:B25,))/(КОСГУ=B$1),Предмет_договора),)","v":0},{"$f":"IFERROR(LOOKUP(,-1/ISERROR(MATCH(Предмет_договора,C$1:C25,))/(КОСГУ=C$1),Предмет_договора),)","v":0},{"$f":"IFERROR(LOOKUP(,-1/ISERROR(MATCH(Предмет_договора,D$1:D25,))/(КОСГУ=D$1),Предмет_договора),)","v":0},{"$f":"IFERROR(LOOKUP(,-1/ISERROR(MATCH(Предмет_договора,E$1:E25,))/(КОСГУ=E$1),Предмет_договора),)","v":0},{"$f":"IFERROR(LOOKUP(,-1/ISERROR(MATCH(Предмет_договора,F$1:F25,))/(КОСГУ=F$1),Предмет_договора),)","v":"то и ремонт оргтехники"},{"$f":"IFERROR(LOOKUP(,-1/ISERROR(MATCH(Предмет_договора,G$1:G25,))/(КОСГУ=G$1),Предмет_договора),)","v":"проведение электромонтажных работ"},{"$f":"IFERROR(LOOKUP(,-1/ISERROR(MATCH(Предмет_договора,H$1:H25,))/(КОСГУ=H$1),Предмет_договора),)","v":0},{"$f":"IFERROR(LOOKUP(,-1/ISERROR(MATCH(Предмет_договора,I$1:I25,))/(КОСГУ=I$1),Предмет_договора),)","v":0},{"$f":"IFERROR(LOOKUP(,-1/ISERROR(MATCH(Предмет_договора,J$1:J25,))/(КОСГУ=J$1),Предмет_договора),)","v":0}]
[null,{"$f":"IFERROR(LOOKUP(,-1/ISERROR(MATCH(Предмет_договора,B$1:B26,))/(КОСГУ=B$1),Предмет_договора),)","v":0},{"$f":"IFERROR(LOOKUP(,-1/ISERROR(MATCH(Предмет_договора,C$1:C26,))/(КОСГУ=C$1),Предмет_договора),)","v":0},{"$f":"IFERROR(LOOKUP(,-1/ISERROR(MATCH(Предмет_договора,D$1:D26,))/(КОСГУ=D$1),Предмет_договора),)","v":0},{"$f":"IFERROR(LOOKUP(,-1/ISERROR(MATCH(Предмет_договора,E$1:E26,))/(КОСГУ=E$1),Предмет_договора),)","v":0},{"$f":"IFERROR(LOOKUP(,-1/ISERROR(MATCH(Предмет_договора,F$1:F26,))/(КОСГУ=F$1),Предмет_договора),)","v":"ремонт металлических конструкций"},{"$f":"IFERROR(LOOKUP(,-1/ISERROR(MATCH(Предмет_договора,G$1:G26,))/(КОСГУ=G$1),Предмет_договора),)","v":"проведение общественного мнения об уровне безопасности личности"},{"$f":"IFERROR(LOOKUP(,-1/ISERROR(MATCH(Предмет_договора,H$1:H26,))/(КОСГУ=H$1),Предмет_договора),)","v":0},{"$f":"IFERROR(LOOKUP(,-1/ISERROR(MATCH(Предмет_договора,I$1:I26,))/(КОСГУ=I$1),Предмет_договора),)","v":0},{"$f":"IFERROR(LOOKUP(,-1/ISERROR(MATCH(Предмет_договора,J$1:J26,))/(КОСГУ=J$1),Предмет_договора),)","v":0}]
[null,{"$f":"IFERROR(LOOKUP(,-1/ISERROR(MATCH(Предмет_договора,B$1:B27,))/(КОСГУ=B$1),Предмет_договора),)","v":0},{"$f":"IFERROR(LOOKUP(,-1/ISERROR(MATCH(Предмет_договора,C$1:C27,))/(КОСГУ=C$1),Предмет_договора),)","v":0},{"$f":"IFERROR(LOOKUP(,-1/ISERROR(MATCH(Предмет_договора,D$1:D27,))/(КОСГУ=D$1),Предмет_договора),)","v":0},{"$f":"IFERROR(LOOKUP(,-1/ISERROR(MATCH(Предмет_договора,E$1:E27,))/(КОСГУ=E$1),Предмет_договора),)","v":0},{"$f":"IFERROR(LOOKUP(,-1/ISERROR(MATCH(Предмет_договора,F$1:F27,))/(КОСГУ=F$1),Предмет_договора),)","v":"ремонт ливневой канализации"},{"$f":"IFERROR(LOOKUP(,-1/ISERROR(MATCH(Предмет_договора,G$1:G27,))/(КОСГУ=G$1),Предмет_договора),)","v":"подписка на периодические издания"},{"$f":"IFERROR(LOOKUP(,-1/ISERROR(MATCH(Предмет_договора,H$1:H27,))/(КОСГУ=H$1),Предмет_договора),)","v":0},{"$f":"IFERROR(LOOKUP(,-1/ISERROR(MATCH(Предмет_договора,I$1:I27,))/(КОСГУ=I$1),Предмет_договора),)","v":0},{"$f":"IFERROR(LOOKUP(,-1/ISERROR(MATCH(Предмет_договора,J$1:J27,))/(КОСГУ=J$1),Предмет_договора),)","v":0}]
[null,{"$f":"IFERROR(LOOKUP(,-1/ISERROR(MATCH(Предмет_договора,B$1:B28,))/(КОСГУ=B$1),Предмет_договора),)","v":0},{"$f":"IFERROR(LOOKUP(,-1/ISERROR(MATCH(Предмет_договора,C$1:C28,))/(КОСГУ=C$1),Предмет_договора),)","v":0},{"$f":"IFERROR(LOOKUP(,-1/ISERROR(MATCH(Предмет_договора,D$1:D28,))/(КОСГУ=D$1),Предмет_договора),)","v":0},{"$f":"IFERROR(LOOKUP(,-1/ISERROR(MATCH(Предмет_договора,E$1:E28,))/(КОСГУ=E$1),Предмет_договора),)","v":0},{"$f":"IFERROR(LOOKUP(,-1/ISERROR(MATCH(Предмет_договора,F$1:F28,))/(КОСГУ=F$1),Предмет_договора),)","v":"ремонт кровли"},{"$f":"IFERROR(LOOKUP(,-1/ISERROR(MATCH(Предмет_договора,G$1:G28,))/(КОСГУ=G$1),Предмет_договора),)","v":"доступ к электронным изданиям"},{"$f":"IFERROR(LOOKUP(,-1/ISERROR(MATCH(Предмет_договора,H$1:H28,))/(КОСГУ=H$1),Предмет_договора),)","v":0},{"$f":"IFERROR(LOOKUP(,-1/ISERROR(MATCH(Предмет_договора,I$1:I28,))/(КОСГУ=I$1),Предмет_договора),)","v":0},{"$f":"IFERROR(LOOKUP(,-1/ISERROR(MATCH(Предмет_договора,J$1:J28,))/(КОСГУ=J$1),Предмет_договора),)","v":0}]
[null,{"$f":"IFERROR(LOOKUP(,-1/ISERROR(MATCH(Предмет_договора,B$1:B29,))/(КОСГУ=B$1),Предмет_договора),)","v":0},{"$f":"IFERROR(LOOKUP(,-1/ISERROR(MATCH(Предмет_договора,C$1:C29,))/(КОСГУ=C$1),Предмет_договора),)","v":0},{"$f":"IFERROR(LOOKUP(,-1/ISERROR(MATCH(Предмет_договора,D$1:D29,))/(КОСГУ=D$1),Предмет_договора),)","v":0},{"$f":"IFERROR(LOOKUP(,-1/ISERROR(MATCH(Предмет_договора,E$1:E29,))/(КОСГУ=E$1),Предмет_договора),)","v":0},{"$f":"IFERROR(LOOKUP(,-1/ISERROR(MATCH(Предмет_договора,F$1:F29,))/(КОСГУ=F$1),Предмет_договора),)","v":"ремонт и содержание имущества"},{"$f":"IFERROR(LOOKUP(,-1/ISERROR(MATCH(Предмет_договора,G$1:G29,))/(КОСГУ=G$1),Предмет_договора),)","v":"подключение и обслуживание системы \"росметод\""},{"$f":"IFERROR(LOOKUP(,-1/ISERROR(MATCH(Предмет_договора,H$1:H29,))/(КОСГУ=H$1),Предмет_договора),)","v":0},{"$f":"IFERROR(LOOKUP(,-1/ISERROR(MATCH(Предмет_договора,I$1:I29,))/(КОСГУ=I$1),Предмет_договора),)","v":0},{"$f":"IFERROR(LOOKUP(,-1/ISERROR(MATCH(Предмет_договора,J$1:J29,))/(КОСГУ=J$1),Предмет_договора),)","v":0}]
[null,{"$f":"IFERROR(LOOKUP(,-1/ISERROR(MATCH(Предмет_договора,B$1:B30,))/(КОСГУ=B$1),Предмет_договора),)","v":0},{"$f":"IFERROR(LOOKUP(,-1/ISERROR(MATCH(Предмет_договора,C$1:C30,))/(КОСГУ=C$1),Предмет_договора),)","v":0},{"$f":"IFERROR(LOOKUP(,-1/ISERROR(MATCH(Предмет_договора,D$1:D30,))/(КОСГУ=D$1),Предмет_договора),)","v":0},{"$f":"IFERROR(LOOKUP(,-1/ISERROR(MATCH(Предмет_договора,E$1:E30,))/(КОСГУ=E$1),Предмет_договора),)","v":0},{"$f":"IFERROR(LOOKUP(,-1/ISERROR(MATCH(Предмет_договора,F$1:F30,))/(КОСГУ=F$1),Предмет_договора),)","v":"подготовка к отопительному сезону"},{"$f":"IFERROR(LOOKUP(,-1/ISERROR(MATCH(Предмет_договора,G$1:G30,))/(КОСГУ=G$1),Предмет_договора),)","v":"поддержка мис \"медиалог\""},{"$f":"IFERROR(LOOKUP(,-1/ISERROR(MATCH(Предмет_договора,H$1:H30,))/(КОСГУ=H$1),Предмет_договора),)","v":0},{"$f":"IFERROR(LOOKUP(,-1/ISERROR(MATCH(Предмет_договора,I$1:I30,))/(КОСГУ=I$1),Предмет_договора),)","v":0},{"$f":"IFERROR(LOOKUP(,-1/ISERROR(MATCH(Предмет_договора,J$1:J30,))/(КОСГУ=J$1),Предмет_договора),)","v":0}]
[null,{"$f":"IFERROR(LOOKUP(,-1/ISERROR(MATCH(Предмет_договора,B$1:B31,))/(КОСГУ=B$1),Предмет_договора),)","v":0},{"$f":"IFERROR(LOOKUP(,-1/ISERROR(MATCH(Предмет_договора,C$1:C31,))/(КОСГУ=C$1),Предмет_договора),)","v":0},{"$f":"IFERROR(LOOKUP(,-1/ISERROR(MATCH(Предмет_договора,D$1:D31,))/(КОСГУ=D$1),Предмет_договора),)","v":0},{"$f":"IFERROR(LOOKUP(,-1/ISERROR(MATCH(Предмет_договора,E$1:E31,))/(КОСГУ=E$1),Предмет_договора),)","v":0},{"$f":"IFERROR(LOOKUP(,-1/ISERROR(MATCH(Предмет_договора,F$1:F31,))/(КОСГУ=F$1),Предмет_договора),)","v":0},{"$f":"IFERROR(LOOKUP(,-1/ISERROR(MATCH(Предмет_договора,G$1:G31,))/(КОСГУ=G$1),Предмет_договора),)","v":"поддержание в постоянной готовности сил к реагированию на чс"},{"$f":"IFERROR(LOOKUP(,-1/ISERROR(MATCH(Предмет_договора,H$1:H31,))/(КОСГУ=H$1),Предмет_договора),)","v":0},{"$f":"IFERROR(LOOKUP(,-1/ISERROR(MATCH(Предмет_договора,I$1:I31,))/(КОСГУ=I$1),Предмет_договора),)","v":0},{"$f":"IFERROR(LOOKUP(,-1/ISERROR(MATCH(Предмет_договора,J$1:J31,))/(КОСГУ=J$1),Предмет_договора),)","v":0}]
[null,{"$f":"IFERROR(LOOKUP(,-1/ISERROR(MATCH(Предмет_договора,B$1:B32,))/(КОСГУ=B$1),Предмет_договора),)","v":0},{"$f":"IFERROR(LOOKUP(,-1/ISERROR(MATCH(Предмет_договора,C$1:C32,))/(КОСГУ=C$1),Предмет_договора),)","v":0},{"$f":"IFERROR(LOOKUP(,-1/ISERROR(MATCH(Предмет_договора,D$1:D32,))/(КОСГУ=D$1),Предмет_договора),)","v":0},{"$f":"IFERROR(LOOKUP(,-1/ISERROR(MATCH(Предмет_договора,E$1:E32,))/(КОСГУ=E$1),Предмет_договора),)","v":0},{"$f":"IFERROR(LOOKUP(,-1/ISERROR(MATCH(Предмет_договора,F$1:F32,))/(КОСГУ=F$1),Предмет_договора),)","v":"огнезащитная обработка, противопожарные мероприятия"},{"$f":"IFERROR(LOOKUP(,-1/ISERROR(MATCH(Предмет_договора,G$1:G32,))/(КОСГУ=G$1),Предмет_договора),)","v":"полиграфические услуги"},{"$f":"IFERROR(LOOKUP(,-1/ISERROR(MATCH(Предмет_договора,H$1:H32,))/(КОСГУ=H$1),Предмет_договора),)","v":0},{"$f":"IFERROR(LOOKUP(,-1/ISERROR(MATCH(Предмет_договора,I$1:I32,))/(КОСГУ=I$1),Предмет_договора),)","v":0},{"$f":"IFERROR(LOOKUP(,-1/ISERROR(MATCH(Предмет_договора,J$1:J32,))/(КОСГУ=J$1),Предмет_договора),)","v":0}]
[null,{"$f":"IFERROR(LOOKUP(,-1/ISERROR(MATCH(Предмет_договора,B$1:B33,))/(КОСГУ=B$1),Предмет_договора),)","v":0},{"$f":"IFERROR(LOOKUP(,-1/ISERROR(MATCH(Предмет_договора,C$1:C33,))/(КОСГУ=C$1),Предмет_договора),)","v":0},{"$f":"IFERROR(LOOKUP(,-1/ISERROR(MATCH(Предмет_договора,D$1:D33,))/(КОСГУ=D$1),Предмет_договора),)","v":0},{"$f":"IFERROR(LOOKUP(,-1/ISERROR(MATCH(Предмет_договора,E$1:E33,))/(КОСГУ=E$1),Предмет_договора),)","v":0},{"$f":"IFERROR(LOOKUP(,-1/ISERROR(MATCH(Предмет_договора,F$1:F33,))/(КОСГУ=F$1),Предмет_договора),)","v":"обслуживание аквариума"},{"$f":"IFERROR(LOOKUP(,-1/ISERROR(MATCH(Предмет_договора,G$1:G33,))/(КОСГУ=G$1),Предмет_договора),)","v":"повышение квалификации"},{"$f":"IFERROR(LOOKUP(,-1/ISERROR(MATCH(Предмет_договора,H$1:H33,))/(КОСГУ=H$1),Предмет_договора),)","v":0},{"$f":"IFERROR(LOOKUP(,-1/ISERROR(MATCH(Предмет_договора,I$1:I33,))/(КОСГУ=I$1),Предмет_договора),)","v":0},{"$f":"IFERROR(LOOKUP(,-1/ISERROR(MATCH(Предмет_договора,J$1:J33,))/(КОСГУ=J$1),Предмет_договора),)","v":0}]
[null,{"$f":"IFERROR(LOOKUP(,-1/ISERROR(MATCH(Предмет_договора,B$1:B34,))/(КОСГУ=B$1),Предмет_договора),)","v":0},{"$f":"IFERROR(LOOKUP(,-1/ISERROR(MATCH(Предмет_договора,C$1:C34,))/(КОСГУ=C$1),Предмет_договора),)","v":0},{"$f":"IFERROR(LOOKUP(,-1/ISERROR(MATCH(Предмет_договора,D$1:D34,))/(КОСГУ=D$1),Предмет_договора),)","v":0},{"$f":"IFERROR(LOOKUP(,-1/ISERROR(MATCH(Предмет_договора,E$1:E34,))/(КОСГУ=E$1),Предмет_договора),)","v":0},{"$f":"IFERROR(LOOKUP(,-1/ISERROR(MATCH(Предмет_договора,F$1:F34,))/(КОСГУ=F$1),Предмет_договора),)","v":"наладка автоматики взу"},{"$f":"IFERROR(LOOKUP(,-1/ISERROR(MATCH(Предмет_договора,G$1:G34,))/(КОСГУ=G$1),Предмет_договора),)","v":"оценочные услуги"},{"$f":"IFERROR(LOOKUP(,-1/ISERROR(MATCH(Предмет_договора,H$1:H34,))/(КОСГУ=H$1),Предмет_договора),)","v":0},{"$f":"IFERROR(LOOKUP(,-1/ISERROR(MATCH(Предмет_договора,I$1:I34,))/(КОСГУ=I$1),Предмет_договора),)","v":0},{"$f":"IFERROR(LOOKUP(,-1/ISERROR(MATCH(Предмет_договора,J$1:J34,))/(КОСГУ=J$1),Предмет_договора),)","v":0}]
[null,{"$f":"IFERROR(LOOKUP(,-1/ISERROR(MATCH(Предмет_договора,B$1:B35,))/(КОСГУ=B$1),Предмет_договора),)","v":0},{"$f":"IFERROR(LOOKUP(,-1/ISERROR(MATCH(Предмет_договора,C$1:C35,))/(КОСГУ=C$1),Предмет_договора),)","v":0},{"$f":"IFERROR(LOOKUP(,-1/ISERROR(MATCH(Предмет_договора,D$1:D35,))/(КОСГУ=D$1),Предмет_договора),)","v":0},{"$f":"IFERROR(LOOKUP(,-1/ISERROR(MATCH(Предмет_договора,E$1:E35,))/(КОСГУ=E$1),Предмет_договора),)","v":0},{"$f":"IFERROR(LOOKUP(,-1/ISERROR(MATCH(Предмет_договора,F$1:F35,))/(КОСГУ=F$1),Предмет_договора),)","v":"монтаж охранной сигнализации"},{"$f":"IFERROR(LOOKUP(,-1/ISERROR(MATCH(Предмет_договора,G$1:G35,))/(КОСГУ=G$1),Предмет_договора),)","v":"охрана"},{"$f":"IFERROR(LOOKUP(,-1/ISERROR(MATCH(Предмет_договора,H$1:H35,))/(КОСГУ=H$1),Предмет_договора),)","v":0},{"$f":"IFERROR(LOOKUP(,-1/ISERROR(MATCH(Предмет_договора,I$1:I35,))/(КОСГУ=I$1),Предмет_договора),)","v":0},{"$f":"IFERROR(LOOKUP(,-1/ISERROR(MATCH(Предмет_договора,J$1:J35,))/(КОСГУ=J$1),Предмет_договора),)","v":0}]
[null,{"$f":"IFERROR(LOOKUP(,-1/ISERROR(MATCH(Предмет_договора,B$1:B36,))/(КОСГУ=B$1),Предмет_договора),)","v":0},{"$f":"IFERROR(LOOKUP(,-1/ISERROR(MATCH(Предмет_договора,C$1:C36,))/(КОСГУ=C$1),Предмет_договора),)","v":0},{"$f":"IFERROR(LOOKUP(,-1/ISERROR(MATCH(Предмет_договора,D$1:D36,))/(КОСГУ=D$1),Предмет_договора),)","v":0},{"$f":"IFERROR(LOOKUP(,-1/ISERROR(MATCH(Предмет_договора,E$1:E36,))/(КОСГУ=E$1),Предмет_договора),)","v":0},{"$f":"IFERROR(LOOKUP(,-1/ISERROR(MATCH(Предмет_договора,F$1:F36,))/(КОСГУ=F$1),Предмет_договора),)","v":"монтаж вентиляции"},{"$f":"IFERROR(LOOKUP(,-1/ISERROR(MATCH(Предмет_договора,G$1:G36,))/(КОСГУ=G$1),Предмет_договора),)","v":"организация конкурса волонтерских команд"},{"$f":"IFERROR(LOOKUP(,-1/ISERROR(MATCH(Предмет_договора,H$1:H36,))/(КОСГУ=H$1),Предмет_договора),)","v":0},{"$f":"IFERROR(LOOKUP(,-1/ISERROR(MATCH(Предмет_договора,I$1:I36,))/(КОСГУ=I$1),Предмет_договора),)","v":0},{"$f":"IFERROR(LOOKUP(,-1/ISERROR(MATCH(Предмет_договора,J$1:J36,))/(КОСГУ=J$1),Предмет_договора),)","v":0}]
[null,{"$f":"IFERROR(LOOKUP(,-1/ISERROR(MATCH(Предмет_договора,B$1:B37,))/(КОСГУ=B$1),Предмет_договора),)","v":0},{"$f":"IFERROR(LOOKUP(,-1/ISERROR(MATCH(Предмет_договора,C$1:C37,))/(КОСГУ=C$1),Предмет_договора),)","v":0},{"$f":"IFERROR(LOOKUP(,-1/ISERROR(MATCH(Предмет_договора,D$1:D37,))/(КОСГУ=D$1),Предмет_договора),)","v":0},{"$f":"IFERROR(LOOKUP(,-1/ISERROR(MATCH(Предмет_договора,E$1:E37,))/(КОСГУ=E$1),Предмет_договора),)","v":0},{"$f":"IFERROR(LOOKUP(,-1/ISERROR(MATCH(Предмет_договора,F$1:F37,))/(КОСГУ=F$1),Предмет_договора),)","v":"капремонт"},{"$f":"IFERROR(LOOKUP(,-1/ISERROR(MATCH(Предмет_договора,G$1:G37,))/(КОСГУ=G$1),Предмет_договора),)","v":"оказание юридических услуг"},{"$f":"IFERROR(LOOKUP(,-1/ISERROR(MATCH(Предмет_договора,H$1:H37,))/(КОСГУ=H$1),Предмет_договора),)","v":0},{"$f":"IFERROR(LOOKUP(,-1/ISERROR(MATCH(Предмет_договора,I$1:I37,))/(КОСГУ=I$1),Предмет_договора),)","v":0},{"$f":"IFERROR(LOOKUP(,-1/ISERROR(MATCH(Предмет_договора,J$1:J37,))/(КОСГУ=J$1),Предмет_договора),)","v":0}]
[null,{"$f":"IFERROR(LOOKUP(,-1/ISERROR(MATCH(Предмет_договора,B$1:B38,))/(КОСГУ=B$1),Предмет_договора),)","v":0},{"$f":"IFERROR(LOOKUP(,-1/ISERROR(MATCH(Предмет_договора,C$1:C38,))/(КОСГУ=C$1),Предмет_договора),)","v":0},{"$f":"IFERROR(LOOKUP(,-1/ISERROR(MATCH(Предмет_договора,D$1:D38,))/(КОСГУ=D$1),Предмет_договора),)","v":0},{"$f":"IFERROR(LOOKUP(,-1/ISERROR(MATCH(Предмет_договора,E$1:E38,))/(КОСГУ=E$1),Предмет_договора),)","v":0},{"$f":"IFERROR(LOOKUP(,-1/ISERROR(MATCH(Предмет_договора,F$1:F38,))/(КОСГУ=F$1),Предмет_договора),)","v":"испытания электроустановок"},{"$f":"IFERROR(LOOKUP(,-1/ISERROR(MATCH(Предмет_договора,G$1:G38,))/(КОСГУ=G$1),Предмет_договора),)","v":"обучение"},{"$f":"IFERROR(LOOKUP(,-1/ISERROR(MATCH(Предмет_договора,H$1:H38,))/(КОСГУ=H$1),Предмет_договора),)","v":0},{"$f":"IFERROR(LOOKUP(,-1/ISERROR(MATCH(Предмет_договора,I$1:I38,))/(КОСГУ=I$1),Предмет_договора),)","v":0},{"$f":"IFERROR(LOOKUP(,-1/ISERROR(MATCH(Предмет_договора,J$1:J38,))/(КОСГУ=J$1),Предмет_договора),)","v":0}]
[null,{"$f":"IFERROR(LOOKUP(,-1/ISERROR(MATCH(Предмет_договора,B$1:B39,))/(КОСГУ=B$1),Предмет_договора),)","v":0},{"$f":"IFERROR(LOOKUP(,-1/ISERROR(MATCH(Предмет_договора,C$1:C39,))/(КОСГУ=C$1),Предмет_договора),)","v":0},{"$f":"IFERROR(LOOKUP(,-1/ISERROR(MATCH(Предмет_договора,D$1:D39,))/(КОСГУ=D$1),Предмет_договора),)","v":0},{"$f":"IFERROR(LOOKUP(,-1/ISERROR(MATCH(Предмет_договора,E$1:E39,))/(КОСГУ=E$1),Предмет_договора),)","v":0},{"$f":"IFERROR(LOOKUP(,-1/ISERROR(MATCH(Предмет_договора,F$1:F39,))/(КОСГУ=F$1),Предмет_договора),)","v":"инженерное обследование"},{"$f":"IFERROR(LOOKUP(,-1/ISERROR(MATCH(Предмет_договора,G$1:G39,))/(КОСГУ=G$1),Предмет_договора),)","v":"образовательные услуги "},{"$f":"IFERROR(LOOKUP(,-1/ISERROR(MATCH(Предмет_договора,H$1:H39,))/(КОСГУ=H$1),Предмет_договора),)","v":0},{"$f":"IFERROR(LOOKUP(,-1/ISERROR(MATCH(Предмет_договора,I$1:I39,))/(КОСГУ=I$1),Предмет_договора),)","v":0},{"$f":"IFERROR(LOOKUP(,-1/ISERROR(MATCH(Предмет_договора,J$1:J39,))/(КОСГУ=J$1),Предмет_договора),)","v":0}]
[null,{"$f":"IFERROR(LOOKUP(,-1/ISERROR(MATCH(Предмет_договора,B$1:B40,))/(КОСГУ=B$1),Предмет_договора),)","v":0},{"$f":"IFERROR(LOOKUP(,-1/ISERROR(MATCH(Предмет_договора,C$1:C40,))/(КОСГУ=C$1),Предмет_договора),)","v":0},{"$f":"IFERROR(LOOKUP(,-1/ISERROR(MATCH(Предмет_договора,D$1:D40,))/(КОСГУ=D$1),Предмет_договора),)","v":0},{"$f":"IFERROR(LOOKUP(,-1/ISERROR(MATCH(Предмет_договора,E$1:E40,))/(КОСГУ=E$1),Предмет_договора),)","v":0},{"$f":"IFERROR(LOOKUP(,-1/ISERROR(MATCH(Предмет_договора,F$1:F40,))/(КОСГУ=F$1),Предмет_договора),)","v":"заправка картриджей"},{"$f":"IFERROR(LOOKUP(,-1/ISERROR(MATCH(Предмет_договора,G$1:G40,))/(КОСГУ=G$1),Предмет_договора),)","v":"неисключительные права на использование учебных видеофильмов"},{"$f":"IFERROR(LOOKUP(,-1/ISERROR(MATCH(Предмет_договора,H$1:H40,))/(КОСГУ=H$1),Предмет_договора),)","v":0},{"$f":"IFERROR(LOOKUP(,-1/ISERROR(MATCH(Предмет_договора,I$1:I40,))/(КОСГУ=I$1),Предмет_договора),)","v":0},{"$f":"IFERROR(LOOKUP(,-1/ISERROR(MATCH(Предмет_договора,J$1:J40,))/(КОСГУ=J$1),Предмет_договора),)","v":0}]
[null,{"$f":"IFERROR(LOOKUP(,-1/ISERROR(MATCH(Предмет_договора,B$1:B41,))/(КОСГУ=B$1),Предмет_договора),)","v":0},{"$f":"IFERROR(LOOKUP(,-1/ISERROR(MATCH(Предмет_договора,C$1:C41,))/(КОСГУ=C$1),Предмет_договора),)","v":0},{"$f":"IFERROR(LOOKUP(,-1/ISERROR(MATCH(Предмет_договора,D$1:D41,))/(КОСГУ=D$1),Предмет_договора),)","v":0},{"$f":"IFERROR(LOOKUP(,-1/ISERROR(MATCH(Предмет_договора,E$1:E41,))/(КОСГУ=E$1),Предмет_договора),)","v":0},{"$f":"IFERROR(LOOKUP(,-1/ISERROR(MATCH(Предмет_договора,F$1:F41,))/(КОСГУ=F$1),Предмет_договора),)","v":"замена редуктора привода лифта"},{"$f":"IFERROR(LOOKUP(,-1/ISERROR(MATCH(Предмет_договора,G$1:G41,))/(КОСГУ=G$1),Предмет_договора),)","v":"монтаж кабельной сети"},{"$f":"IFERROR(LOOKUP(,-1/ISERROR(MATCH(Предмет_договора,H$1:H41,))/(КОСГУ=H$1),Предмет_договора),)","v":0},{"$f":"IFERROR(LOOKUP(,-1/ISERROR(MATCH(Предмет_договора,I$1:I41,))/(КОСГУ=I$1),Предмет_договора),)","v":0},{"$f":"IFERROR(LOOKUP(,-1/ISERROR(MATCH(Предмет_договора,J$1:J41,))/(КОСГУ=J$1),Предмет_договора),)","v":0}]
[null,{"$f":"IFERROR(LOOKUP(,-1/ISERROR(MATCH(Предмет_договора,B$1:B42,))/(КОСГУ=B$1),Предмет_договора),)","v":0},{"$f":"IFERROR(LOOKUP(,-1/ISERROR(MATCH(Предмет_договора,C$1:C42,))/(КОСГУ=C$1),Предмет_договора),)","v":0},{"$f":"IFERROR(LOOKUP(,-1/ISERROR(MATCH(Предмет_договора,D$1:D42,))/(КОСГУ=D$1),Предмет_договора),)","v":0},{"$f":"IFERROR(LOOKUP(,-1/ISERROR(MATCH(Предмет_договора,E$1:E42,))/(КОСГУ=E$1),Предмет_договора),)","v":0},{"$f":"IFERROR(LOOKUP(,-1/ISERROR(MATCH(Предмет_договора,F$1:F42,))/(КОСГУ=F$1),Предмет_договора),)","v":"замена въездных ворот"},{"$f":"IFERROR(LOOKUP(,-1/ISERROR(MATCH(Предмет_договора,G$1:G42,))/(КОСГУ=G$1),Предмет_договора),)","v":"монтаж и украшение искусственных елей"},{"$f":"IFERROR(LOOKUP(,-1/ISERROR(MATCH(Предмет_договора,H$1:H42,))/(КОСГУ=H$1),Предмет_договора),)","v":0},{"$f":"IFERROR(LOOKUP(,-1/ISERROR(MATCH(Предмет_договора,I$1:I42,))/(КОСГУ=I$1),Предмет_договора),)","v":0},{"$f":"IFERROR(LOOKUP(,-1/ISERROR(MATCH(Предмет_договора,J$1:J42,))/(КОСГУ=J$1),Предмет_договора),)","v":0}]
[null,{"$f":"IFERROR(LOOKUP(,-1/ISERROR(MATCH(Предмет_договора,B$1:B43,))/(КОСГУ=B$1),Предмет_договора),)","v":0},{"$f":"IFERROR(LOOKUP(,-1/ISERROR(MATCH(Предмет_договора,C$1:C43,))/(КОСГУ=C$1),Предмет_договора),)","v":0},{"$f":"IFERROR(LOOKUP(,-1/ISERROR(MATCH(Предмет_договора,D$1:D43,))/(КОСГУ=D$1),Предмет_договора),)","v":0},{"$f":"IFERROR(LOOKUP(,-1/ISERROR(MATCH(Предмет_договора,E$1:E43,))/(КОСГУ=E$1),Предмет_договора),)","v":0},{"$f":"IFERROR(LOOKUP(,-1/ISERROR(MATCH(Предмет_договора,F$1:F43,))/(КОСГУ=F$1),Предмет_договора),)","v":"демеркуризация люминисцентных ламп"},{"$f":"IFERROR(LOOKUP(,-1/ISERROR(MATCH(Предмет_договора,G$1:G43,))/(КОСГУ=G$1),Предмет_договора),)","v":"монтаж автоматической пожарной сигнализации"},{"$f":"IFERROR(LOOKUP(,-1/ISERROR(MATCH(Предмет_договора,H$1:H43,))/(КОСГУ=H$1),Предмет_договора),)","v":0},{"$f":"IFERROR(LOOKUP(,-1/ISERROR(MATCH(Предмет_договора,I$1:I43,))/(КОСГУ=I$1),Предмет_договора),)","v":0},{"$f":"IFERROR(LOOKUP(,-1/ISERROR(MATCH(Предмет_договора,J$1:J43,))/(КОСГУ=J$1),Предмет_договора),)","v":0}]
[null,{"$f":"IFERROR(LOOKUP(,-1/ISERROR(MATCH(Предмет_договора,B$1:B44,))/(КОСГУ=B$1),Предмет_договора),)","v":0},{"$f":"IFERROR(LOOKUP(,-1/ISERROR(MATCH(Предмет_договора,C$1:C44,))/(КОСГУ=C$1),Предмет_договора),)","v":0},{"$f":"IFERROR(LOOKUP(,-1/ISERROR(MATCH(Предмет_договора,D$1:D44,))/(КОСГУ=D$1),Предмет_договора),)","v":0},{"$f":"IFERROR(LOOKUP(,-1/ISERROR(MATCH(Предмет_договора,E$1:E44,))/(КОСГУ=E$1),Предмет_договора),)","v":0},{"$f":"IFERROR(LOOKUP(,-1/ISERROR(MATCH(Предмет_договора,F$1:F44,))/(КОСГУ=F$1),Предмет_договора),)","v":"дезинфекция, дезинсекция, дератизация"},{"$f":"IFERROR(LOOKUP(,-1/ISERROR(MATCH(Предмет_договора,G$1:G44,))/(КОСГУ=G$1),Предмет_договора),)","v":"монтаж \"стрелец-мониторинг\""},{"$f":"IFERROR(LOOKUP(,-1/ISERROR(MATCH(Предмет_договора,H$1:H44,))/(КОСГУ=H$1),Предмет_договора),)","v":0},{"$f":"IFERROR(LOOKUP(,-1/ISERROR(MATCH(Предмет_договора,I$1:I44,))/(КОСГУ=I$1),Предмет_договора),)","v":0},{"$f":"IFERROR(LOOKUP(,-1/ISERROR(MATCH(Предмет_договора,J$1:J44,))/(КОСГУ=J$1),Предмет_договора),)","v":0}]
[null,{"$f":"IFERROR(LOOKUP(,-1/ISERROR(MATCH(Предмет_договора,B$1:B45,))/(КОСГУ=B$1),Предмет_договора),)","v":0},{"$f":"IFERROR(LOOKUP(,-1/ISERROR(MATCH(Предмет_договора,C$1:C45,))/(КОСГУ=C$1),Предмет_договора),)","v":0},{"$f":"IFERROR(LOOKUP(,-1/ISERROR(MATCH(Предмет_договора,D$1:D45,))/(КОСГУ=D$1),Предмет_договора),)","v":0},{"$f":"IFERROR(LOOKUP(,-1/ISERROR(MATCH(Предмет_договора,E$1:E45,))/(КОСГУ=E$1),Предмет_договора),)","v":0},{"$f":"IFERROR(LOOKUP(,-1/ISERROR(MATCH(Предмет_договора,F$1:F45,))/(КОСГУ=F$1),Предмет_договора),)","v":"вывоз тбо"},{"$f":"IFERROR(LOOKUP(,-1/ISERROR(MATCH(Предмет_договора,G$1:G45,))/(КОСГУ=G$1),Предмет_договора),)","v":"лабораторные исследования"},{"$f":"IFERROR(LOOKUP(,-1/ISERROR(MATCH(Предмет_договора,H$1:H45,))/(КОСГУ=H$1),Предмет_договора),)","v":0},{"$f":"IFERROR(LOOKUP(,-1/ISERROR(MATCH(Предмет_договора,I$1:I45,))/(КОСГУ=I$1),Предмет_договора),)","v":0},{"$f":"IFERROR(LOOKUP(,-1/ISERROR(MATCH(Предмет_договора,J$1:J45,))/(КОСГУ=J$1),Предмет_договора),)","v":0}]
[null,{"$f":"IFERROR(LOOKUP(,-1/ISERROR(MATCH(Предмет_договора,B$1:B46,))/(КОСГУ=B$1),Предмет_договора),)","v":0},{"$f":"IFERROR(LOOKUP(,-1/ISERROR(MATCH(Предмет_договора,C$1:C46,))/(КОСГУ=C$1),Предмет_договора),)","v":0},{"$f":"IFERROR(LOOKUP(,-1/ISERROR(MATCH(Предмет_договора,D$1:D46,))/(КОСГУ=D$1),Предмет_договора),)","v":0},{"$f":"IFERROR(LOOKUP(,-1/ISERROR(MATCH(Предмет_договора,E$1:E46,))/(КОСГУ=E$1),Предмет_договора),)","v":0},{"$f":"IFERROR(LOOKUP(,-1/ISERROR(MATCH(Предмет_договора,F$1:F46,))/(КОСГУ=F$1),Предмет_договора),)","v":"вывоз мед.отходов"},{"$f":"IFERROR(LOOKUP(,-1/ISERROR(MATCH(Предмет_договора,G$1:G46,))/(КОСГУ=G$1),Предмет_договора),)","v":"медицинский осмотр"},{"$f":"IFERROR(LOOKUP(,-1/ISERROR(MATCH(Предмет_договора,H$1:H46,))/(КОСГУ=H$1),Предмет_договора),)","v":0},{"$f":"IFERROR(LOOKUP(,-1/ISERROR(MATCH(Предмет_договора,I$1:I46,))/(КОСГУ=I$1),Предмет_договора),)","v":0},{"$f":"IFERROR(LOOKUP(,-1/ISERROR(MATCH(Предмет_договора,J$1:J46,))/(КОСГУ=J$1),Предмет_договора),)","v":0}]
[null,{"$f":"IFERROR(LOOKUP(,-1/ISERROR(MATCH(Предмет_договора,B$1:B47,))/(КОСГУ=B$1),Предмет_договора),)","v":0},{"$f":"IFERROR(LOOKUP(,-1/ISERROR(MATCH(Предмет_договора,C$1:C47,))/(КОСГУ=C$1),Предмет_договора),)","v":0},{"$f":"IFERROR(LOOKUP(,-1/ISERROR(MATCH(Предмет_договора,D$1:D47,))/(КОСГУ=D$1),Предмет_договора),)","v":0},{"$f":"IFERROR(LOOKUP(,-1/ISERROR(MATCH(Предмет_договора,E$1:E47,))/(КОСГУ=E$1),Предмет_договора),)","v":0},{"$f":"IFERROR(LOOKUP(,-1/ISERROR(MATCH(Предмет_договора,F$1:F47,))/(КОСГУ=F$1),Предмет_договора),)","v":0},{"$f":"IFERROR(LOOKUP(,-1/ISERROR(MATCH(Предмет_договора,G$1:G47,))/(КОСГУ=G$1),Предмет_договора),)","v":"страхование ОСАГО"},{"$f":"IFERROR(LOOKUP(,-1/ISERROR(MATCH(Предмет_договора,H$1:H47,))/(КОСГУ=H$1),Предмет_договора),)","v":0},{"$f":"IFERROR(LOOKUP(,-1/ISERROR(MATCH(Предмет_договора,I$1:I47,))/(КОСГУ=I$1),Предмет_договора),)","v":0},{"$f":"IFERROR(LOOKUP(,-1/ISERROR(MATCH(Предмет_договора,J$1:J47,))/(КОСГУ=J$1),Предмет_договора),)","v":0}]
[null,{"$f":"IFERROR(LOOKUP(,-1/ISERROR(MATCH(Предмет_договора,B$1:B48,))/(КОСГУ=B$1),Предмет_договора),)","v":0},{"$f":"IFERROR(LOOKUP(,-1/ISERROR(MATCH(Предмет_договора,C$1:C48,))/(КОСГУ=C$1),Предмет_договора),)","v":0},{"$f":"IFERROR(LOOKUP(,-1/ISERROR(MATCH(Предмет_договора,D$1:D48,))/(КОСГУ=D$1),Предмет_договора),)","v":0},{"$f":"IFERROR(LOOKUP(,-1/ISERROR(MATCH(Предмет_договора,E$1:E48,))/(КОСГУ=E$1),Предмет_договора),)","v":0},{"$f":"IFERROR(LOOKUP(,-1/ISERROR(MATCH(Предмет_договора,F$1:F48,))/(КОСГУ=F$1),Предмет_договора),)","v":0},{"$f":"IFERROR(LOOKUP(,-1/ISERROR(MATCH(Предмет_договора,G$1:G48,))/(КОСГУ=G$1),Предмет_договора),)","v":"информационные услуги"},{"$f":"IFERROR(LOOKUP(,-1/ISERROR(MATCH(Предмет_договора,H$1:H48,))/(КОСГУ=H$1),Предмет_договора),)","v":0},{"$f":"IFERROR(LOOKUP(,-1/ISERROR(MATCH(Предмет_договора,I$1:I48,))/(КОСГУ=I$1),Предмет_договора),)","v":0},{"$f":"IFERROR(LOOKUP(,-1/ISERROR(MATCH(Предмет_договора,J$1:J48,))/(КОСГУ=J$1),Предмет_договора),)","v":0}]
[null,{"$f":"IFERROR(LOOKUP(,-1/ISERROR(MATCH(Предмет_договора,B$1:B49,))/(КОСГУ=B$1),Предмет_договора),)","v":0},{"$f":"IFERROR(LOOKUP(,-1/ISERROR(MATCH(Предмет_договора,C$1:C49,))/(КОСГУ=C$1),Предмет_договора),)","v":0},{"$f":"IFERROR(LOOKUP(,-1/ISERROR(MATCH(Предмет_договора,D$1:D49,))/(КОСГУ=D$1),Предмет_договора),)","v":0},{"$f":"IFERROR(LOOKUP(,-1/ISERROR(MATCH(Предмет_договора,E$1:E49,))/(КОСГУ=E$1),Предмет_договора),)","v":0},{"$f":"IFERROR(LOOKUP(,-1/ISERROR(MATCH(Предмет_договора,F$1:F49,))/(КОСГУ=F$1),Предмет_договора),)","v":0},{"$f":"IFERROR(LOOKUP(,-1/ISERROR(MATCH(Предмет_договора,G$1:G49,))/(КОСГУ=G$1),Предмет_договора),)","v":"инкассация"},{"$f":"IFERROR(LOOKUP(,-1/ISERROR(MATCH(Предмет_договора,H$1:H49,))/(КОСГУ=H$1),Предмет_договора),)","v":0},{"$f":"IFERROR(LOOKUP(,-1/ISERROR(MATCH(Предмет_договора,I$1:I49,))/(КОСГУ=I$1),Предмет_договора),)","v":0},{"$f":"IFERROR(LOOKUP(,-1/ISERROR(MATCH(Предмет_договора,J$1:J49,))/(КОСГУ=J$1),Предмет_договора),)","v":0}]
[null,{"$f":"IFERROR(LOOKUP(,-1/ISERROR(MATCH(Предмет_договора,B$1:B50,))/(КОСГУ=B$1),Предмет_договора),)","v":0},{"$f":"IFERROR(LOOKUP(,-1/ISERROR(MATCH(Предмет_договора,C$1:C50,))/(КОСГУ=C$1),Предмет_договора),)","v":0},{"$f":"IFERROR(LOOKUP(,-1/ISERROR(MATCH(Предмет_договора,D$1:D50,))/(КОСГУ=D$1),Предмет_договора),)","v":0},{"$f":"IFERROR(LOOKUP(,-1/ISERROR(MATCH(Предмет_договора,E$1:E50,))/(КОСГУ=E$1),Предмет_договора),)","v":0},{"$f":"IFERROR(LOOKUP(,-1/ISERROR(MATCH(Предмет_договора,F$1:F50,))/(КОСГУ=F$1),Предмет_договора),)","v":0},{"$f":"IFERROR(LOOKUP(,-1/ISERROR(MATCH(Предмет_договора,G$1:G50,))/(КОСГУ=G$1),Предмет_договора),)","v":"изготовление статьи и размещение"},{"$f":"IFERROR(LOOKUP(,-1/ISERROR(MATCH(Предмет_договора,H$1:H50,))/(КОСГУ=H$1),Предмет_договора),)","v":0},{"$f":"IFERROR(LOOKUP(,-1/ISERROR(MATCH(Предмет_договора,I$1:I50,))/(КОСГУ=I$1),Предмет_договора),)","v":0},{"$f":"IFERROR(LOOKUP(,-1/ISERROR(MATCH(Предмет_договора,J$1:J50,))/(КОСГУ=J$1),Предмет_договора),)","v":0}]
[null,{"$f":"IFERROR(LOOKUP(,-1/ISERROR(MATCH(Предмет_договора,B$1:B51,))/(КОСГУ=B$1),Предмет_договора),)","v":0},{"$f":"IFERROR(LOOKUP(,-1/ISERROR(MATCH(Предмет_договора,C$1:C51,))/(КОСГУ=C$1),Предмет_договора),)","v":0},{"$f":"IFERROR(LOOKUP(,-1/ISERROR(MATCH(Предмет_договора,D$1:D51,))/(КОСГУ=D$1),Предмет_договора),)","v":0},{"$f":"IFERROR(LOOKUP(,-1/ISERROR(MATCH(Предмет_договора,E$1:E51,))/(КОСГУ=E$1),Предмет_договора),)","v":0},{"$f":"IFERROR(LOOKUP(,-1/ISERROR(MATCH(Предмет_договора,F$1:F51,))/(КОСГУ=F$1),Предмет_договора),)","v":0},{"$f":"IFERROR(LOOKUP(,-1/ISERROR(MATCH(Предмет_договора,G$1:G51,))/(КОСГУ=G$1),Предмет_договора),)","v":"диагностирования сетей газопотребления"},{"$f":"IFERROR(LOOKUP(,-1/ISERROR(MATCH(Предмет_договора,H$1:H51,))/(КОСГУ=H$1),Предмет_договора),)","v":0},{"$f":"IFERROR(LOOKUP(,-1/ISERROR(MATCH(Предмет_договора,I$1:I51,))/(КОСГУ=I$1),Предмет_договора),)","v":0},{"$f":"IFERROR(LOOKUP(,-1/ISERROR(MATCH(Предмет_договора,J$1:J51,))/(КОСГУ=J$1),Предмет_договора),)","v":0}]
[null,{"$f":"IFERROR(LOOKUP(,-1/ISERROR(MATCH(Предмет_договора,B$1:B52,))/(КОСГУ=B$1),Предмет_договора),)","v":0},{"$f":"IFERROR(LOOKUP(,-1/ISERROR(MATCH(Предмет_договора,C$1:C52,))/(КОСГУ=C$1),Предмет_договора),)","v":0},{"$f":"IFERROR(LOOKUP(,-1/ISERROR(MATCH(Предмет_договора,D$1:D52,))/(КОСГУ=D$1),Предмет_договора),)","v":0},{"$f":"IFERROR(LOOKUP(,-1/ISERROR(MATCH(Предмет_договора,E$1:E52,))/(КОСГУ=E$1),Предмет_договора),)","v":0},{"$f":"IFERROR(LOOKUP(,-1/ISERROR(MATCH(Предмет_договора,F$1:F52,))/(КОСГУ=F$1),Предмет_договора),)","v":0},{"$f":"IFERROR(LOOKUP(,-1/ISERROR(MATCH(Предмет_договора,G$1:G52,))/(КОСГУ=G$1),Предмет_договора),)","v":"бухгалтерская отчетность"},{"$f":"IFERROR(LOOKUP(,-1/ISERROR(MATCH(Предмет_договора,H$1:H52,))/(КОСГУ=H$1),Предмет_договора),)","v":0},{"$f":"IFERROR(LOOKUP(,-1/ISERROR(MATCH(Предмет_договора,I$1:I52,))/(КОСГУ=I$1),Предмет_договора),)","v":0},{"$f":"IFERROR(LOOKUP(,-1/ISERROR(MATCH(Предмет_договора,J$1:J52,))/(КОСГУ=J$1),Предмет_договора),)","v":0}]
[null,{"$f":"IFERROR(LOOKUP(,-1/ISERROR(MATCH(Предмет_договора,B$1:B53,))/(КОСГУ=B$1),Предмет_договора),)","v":0},{"$f":"IFERROR(LOOKUP(,-1/ISERROR(MATCH(Предмет_договора,C$1:C53,))/(КОСГУ=C$1),Предмет_договора),)","v":0},{"$f":"IFERROR(LOOKUP(,-1/ISERROR(MATCH(Предмет_договора,D$1:D53,))/(КОСГУ=D$1),Предмет_договора),)","v":0},{"$f":"IFERROR(LOOKUP(,-1/ISERROR(MATCH(Предмет_договора,E$1:E53,))/(КОСГУ=E$1),Предмет_договора),)","v":0},{"$f":"IFERROR(LOOKUP(,-1/ISERROR(MATCH(Предмет_договора,F$1:F53,))/(КОСГУ=F$1),Предмет_договора),)","v":0},{"$f":"IFERROR(LOOKUP(,-1/ISERROR(MATCH(Предмет_договора,G$1:G53,))/(КОСГУ=G$1),Предмет_договора),)","v":0},{"$f":"IFERROR(LOOKUP(,-1/ISERROR(MATCH(Предмет_договора,H$1:H53,))/(КОСГУ=H$1),Предмет_договора),)","v":0},{"$f":"IFERROR(LOOKUP(,-1/ISERROR(MATCH(Предмет_договора,I$1:I53,))/(КОСГУ=I$1),Предмет_договора),)","v":0},{"$f":"IFERROR(LOOKUP(,-1/ISERROR(MATCH(Предмет_договора,J$1:J53,))/(КОСГУ=J$1),Предмет_договора),)","v":0}]
[null,{"$f":"IFERROR(LOOKUP(,-1/ISERROR(MATCH(Предмет_договора,B$1:B54,))/(КОСГУ=B$1),Предмет_договора),)","v":0},{"$f":"IFERROR(LOOKUP(,-1/ISERROR(MATCH(Предмет_договора,C$1:C54,))/(КОСГУ=C$1),Предмет_договора),)","v":0},{"$f":"IFERROR(LOOKUP(,-1/ISERROR(MATCH(Предмет_договора,D$1:D54,))/(КОСГУ=D$1),Предмет_договора),)","v":0},{"$f":"IFERROR(LOOKUP(,-1/ISERROR(MATCH(Предмет_договора,E$1:E54,))/(КОСГУ=E$1),Предмет_договора),)","v":0},{"$f":"IFERROR(LOOKUP(,-1/ISERROR(MATCH(Предмет_договора,F$1:F54,))/(КОСГУ=F$1),Предмет_договора),)","v":0},{"$f":"IFERROR(LOOKUP(,-1/ISERROR(MATCH(Предмет_договора,G$1:G54,))/(КОСГУ=G$1),Предмет_договора),)","v":0},{"$f":"IFERROR(LOOKUP(,-1/ISERROR(MATCH(Предмет_договора,H$1:H54,))/(КОСГУ=H$1),Предмет_договора),)","v":0},{"$f":"IFERROR(LOOKUP(,-1/ISERROR(MATCH(Предмет_договора,I$1:I54,))/(КОСГУ=I$1),Предмет_договора),)","v":0},{"$f":"IFERROR(LOOKUP(,-1/ISERROR(MATCH(Предмет_договора,J$1:J54,))/(КОСГУ=J$1),Предмет_договора),)","v":0}]
[null,{"$f":"IFERROR(LOOKUP(,-1/ISERROR(MATCH(Предмет_договора,B$1:B55,))/(КОСГУ=B$1),Предмет_договора),)","v":0},{"$f":"IFERROR(LOOKUP(,-1/ISERROR(MATCH(Предмет_договора,C$1:C55,))/(КОСГУ=C$1),Предмет_договора),)","v":0},{"$f":"IFERROR(LOOKUP(,-1/ISERROR(MATCH(Предмет_договора,D$1:D55,))/(КОСГУ=D$1),Предмет_договора),)","v":0},{"$f":"IFERROR(LOOKUP(,-1/ISERROR(MATCH(Предмет_договора,E$1:E55,))/(КОСГУ=E$1),Предмет_договора),)","v":0},{"$f":"IFERROR(LOOKUP(,-1/ISERROR(MATCH(Предмет_договора,F$1:F55,))/(КОСГУ=F$1),Предмет_договора),)","v":0},{"$f":"IFERROR(LOOKUP(,-1/ISERROR(MATCH(Предмет_договора,G$1:G55,))/(КОСГУ=G$1),Предмет_договора),)","v":0},{"$f":"IFERROR(LOOKUP(,-1/ISERROR(MATCH(Предмет_договора,H$1:H55,))/(КОСГУ=H$1),Предмет_договора),)","v":0},{"$f":"IFERROR(LOOKUP(,-1/ISERROR(MATCH(Предмет_договора,I$1:I55,))/(КОСГУ=I$1),Предмет_договора),)","v":0},{"$f":"IFERROR(LOOKUP(,-1/ISERROR(MATCH(Предмет_договора,J$1:J55,))/(КОСГУ=J$1),Предмет_договора),)","v":0}]
[null,{"$f":"IFERROR(LOOKUP(,-1/ISERROR(MATCH(Предмет_договора,B$1:B56,))/(КОСГУ=B$1),Предмет_договора),)","v":0},{"$f":"IFERROR(LOOKUP(,-1/ISERROR(MATCH(Предмет_договора,C$1:C56,))/(КОСГУ=C$1),Предмет_договора),)","v":0},{"$f":"IFERROR(LOOKUP(,-1/ISERROR(MATCH(Предмет_договора,D$1:D56,))/(КОСГУ=D$1),Предмет_договора),)","v":0},{"$f":"IFERROR(LOOKUP(,-1/ISERROR(MATCH(Предмет_договора,E$1:E56,))/(КОСГУ=E$1),Предмет_договора),)","v":0},{"$f":"IFERROR(LOOKUP(,-1/ISERROR(MATCH(Предмет_договора,F$1:F56,))/(КОСГУ=F$1),Предмет_договора),)","v":0},{"$f":"IFERROR(LOOKUP(,-1/ISERROR(MATCH(Предмет_договора,G$1:G56,))/(КОСГУ=G$1),Предмет_договора),)","v":0},{"$f":"IFERROR(LOOKUP(,-1/ISERROR(MATCH(Предмет_договора,H$1:H56,))/(КОСГУ=H$1),Предмет_договора),)","v":0},{"$f":"IFERROR(LOOKUP(,-1/ISERROR(MATCH(Предмет_договора,I$1:I56,))/(КОСГУ=I$1),Предмет_договора),)","v":0},{"$f":"IFERROR(LOOKUP(,-1/ISERROR(MATCH(Предмет_договора,J$1:J56,))/(КОСГУ=J$1),Предмет_договора),)","v":0}]
[null,{"$f":"IFERROR(LOOKUP(,-1/ISERROR(MATCH(Предмет_договора,B$1:B57,))/(КОСГУ=B$1),Предмет_договора),)","v":0},{"$f":"IFERROR(LOOKUP(,-1/ISERROR(MATCH(Предмет_договора,C$1:C57,))/(КОСГУ=C$1),Предмет_договора),)","v":0},{"$f":"IFERROR(LOOKUP(,-1/ISERROR(MATCH(Предмет_договора,D$1:D57,))/(КОСГУ=D$1),Предмет_договора),)","v":0},{"$f":"IFERROR(LOOKUP(,-1/ISERROR(MATCH(Предмет_договора,E$1:E57,))/(КОСГУ=E$1),Предмет_договора),)","v":0},{"$f":"IFERROR(LOOKUP(,-1/ISERROR(MATCH(Предмет_договора,F$1:F57,))/(КОСГУ=F$1),Предмет_договора),)","v":0},{"$f":"IFERROR(LOOKUP(,-1/ISERROR(MATCH(Предмет_договора,G$1:G57,))/(КОСГУ=G$1),Предмет_договора),)","v":0},{"$f":"IFERROR(LOOKUP(,-1/ISERROR(MATCH(Предмет_договора,H$1:H57,))/(КОСГУ=H$1),Предмет_договора),)","v":0},{"$f":"IFERROR(LOOKUP(,-1/ISERROR(MATCH(Предмет_договора,I$1:I57,))/(КОСГУ=I$1),Предмет_договора),)","v":0},{"$f":"IFERROR(LOOKUP(,-1/ISERROR(MATCH(Предмет_договора,J$1:J57,))/(КОСГУ=J$1),Предмет_договора),)","v":0}]
[null,{"$f":"IFERROR(LOOKUP(,-1/ISERROR(MATCH(Предмет_договора,B$1:B58,))/(КОСГУ=B$1),Предмет_договора),)","v":0},{"$f":"IFERROR(LOOKUP(,-1/ISERROR(MATCH(Предмет_договора,C$1:C58,))/(КОСГУ=C$1),Предмет_договора),)","v":0},{"$f":"IFERROR(LOOKUP(,-1/ISERROR(MATCH(Предмет_договора,D$1:D58,))/(КОСГУ=D$1),Предмет_договора),)","v":0},{"$f":"IFERROR(LOOKUP(,-1/ISERROR(MATCH(Предмет_договора,E$1:E58,))/(КОСГУ=E$1),Предмет_договора),)","v":0},{"$f":"IFERROR(LOOKUP(,-1/ISERROR(MATCH(Предмет_договора,F$1:F58,))/(КОСГУ=F$1),Предмет_договора),)","v":0},{"$f":"IFERROR(LOOKUP(,-1/ISERROR(MATCH(Предмет_договора,G$1:G58,))/(КОСГУ=G$1),Предмет_договора),)","v":0},{"$f":"IFERROR(LOOKUP(,-1/ISERROR(MATCH(Предмет_договора,H$1:H58,))/(КОСГУ=H$1),Предмет_договора),)","v":0},{"$f":"IFERROR(LOOKUP(,-1/ISERROR(MATCH(Предмет_договора,I$1:I58,))/(КОСГУ=I$1),Предмет_договора),)","v":0},{"$f":"IFERROR(LOOKUP(,-1/ISERROR(MATCH(Предмет_договора,J$1:J58,))/(КОСГУ=J$1),Предмет_договора),)","v":0}]
[null,{"$f":"IFERROR(LOOKUP(,-1/ISERROR(MATCH(Предмет_договора,B$1:B59,))/(КОСГУ=B$1),Предмет_договора),)","v":0},{"$f":"IFERROR(LOOKUP(,-1/ISERROR(MATCH(Предмет_договора,C$1:C59,))/(КОСГУ=C$1),Предмет_договора),)","v":0},{"$f":"IFERROR(LOOKUP(,-1/ISERROR(MATCH(Предмет_договора,D$1:D59,))/(КОСГУ=D$1),Предмет_договора),)","v":0},{"$f":"IFERROR(LOOKUP(,-1/ISERROR(MATCH(Предмет_договора,E$1:E59,))/(КОСГУ=E$1),Предмет_договора),)","v":0},{"$f":"IFERROR(LOOKUP(,-1/ISERROR(MATCH(Предмет_договора,F$1:F59,))/(КОСГУ=F$1),Предмет_договора),)","v":0},{"$f":"IFERROR(LOOKUP(,-1/ISERROR(MATCH(Предмет_договора,G$1:G59,))/(КОСГУ=G$1),Предмет_договора),)","v":0},{"$f":"IFERROR(LOOKUP(,-1/ISERROR(MATCH(Предмет_договора,H$1:H59,))/(КОСГУ=H$1),Предмет_договора),)","v":0},{"$f":"IFERROR(LOOKUP(,-1/ISERROR(MATCH(Предмет_договора,I$1:I59,))/(КОСГУ=I$1),Предмет_договора),)","v":0},{"$f":"IFERROR(LOOKUP(,-1/ISERROR(MATCH(Предмет_договора,J$1:J59,))/(КОСГУ=J$1),Предмет_договора),)","v":0}]
[null,{"$f":"IFERROR(LOOKUP(,-1/ISERROR(MATCH(Предмет_договора,B$1:B60,))/(КОСГУ=B$1),Предмет_договора),)","v":0},{"$f":"IFERROR(LOOKUP(,-1/ISERROR(MATCH(Предмет_договора,C$1:C60,))/(КОСГУ=C$1),Предмет_договора),)","v":0},{"$f":"IFERROR(LOOKUP(,-1/ISERROR(MATCH(Предмет_договора,D$1:D60,))/(КОСГУ=D$1),Предмет_договора),)","v":0},{"$f":"IFERROR(LOOKUP(,-1/ISERROR(MATCH(Предмет_договора,E$1:E60,))/(КОСГУ=E$1),Предмет_договора),)","v":0},{"$f":"IFERROR(LOOKUP(,-1/ISERROR(MATCH(Предмет_договора,F$1:F60,))/(КОСГУ=F$1),Предмет_договора),)","v":0},{"$f":"IFERROR(LOOKUP(,-1/ISERROR(MATCH(Предмет_договора,G$1:G60,))/(КОСГУ=G$1),Предмет_договора),)","v":0},{"$f":"IFERROR(LOOKUP(,-1/ISERROR(MATCH(Предмет_договора,H$1:H60,))/(КОСГУ=H$1),Предмет_договора),)","v":0},{"$f":"IFERROR(LOOKUP(,-1/ISERROR(MATCH(Предмет_договора,I$1:I60,))/(КОСГУ=I$1),Предмет_договора),)","v":0},{"$f":"IFERROR(LOOKUP(,-1/ISERROR(MATCH(Предмет_договора,J$1:J60,))/(КОСГУ=J$1),Предмет_договора),)","v":0}]
[null,{"$f":"IFERROR(LOOKUP(,-1/ISERROR(MATCH(Предмет_договора,B$1:B61,))/(КОСГУ=B$1),Предмет_договора),)","v":0},{"$f":"IFERROR(LOOKUP(,-1/ISERROR(MATCH(Предмет_договора,C$1:C61,))/(КОСГУ=C$1),Предмет_договора),)","v":0},{"$f":"IFERROR(LOOKUP(,-1/ISERROR(MATCH(Предмет_договора,D$1:D61,))/(КОСГУ=D$1),Предмет_договора),)","v":0},{"$f":"IFERROR(LOOKUP(,-1/ISERROR(MATCH(Предмет_договора,E$1:E61,))/(КОСГУ=E$1),Предмет_договора),)","v":0},{"$f":"IFERROR(LOOKUP(,-1/ISERROR(MATCH(Предмет_договора,F$1:F61,))/(КОСГУ=F$1),Предмет_договора),)","v":0},{"$f":"IFERROR(LOOKUP(,-1/ISERROR(MATCH(Предмет_договора,G$1:G61,))/(КОСГУ=G$1),Предмет_договора),)","v":0},{"$f":"IFERROR(LOOKUP(,-1/ISERROR(MATCH(Предмет_договора,H$1:H61,))/(КОСГУ=H$1),Предмет_договора),)","v":0},{"$f":"IFERROR(LOOKUP(,-1/ISERROR(MATCH(Предмет_договора,I$1:I61,))/(КОСГУ=I$1),Предмет_договора),)","v":0},{"$f":"IFERROR(LOOKUP(,-1/ISERROR(MATCH(Предмет_договора,J$1:J61,))/(КОСГУ=J$1),Предмет_договора),)","v":0}]
[null,{"$f":"IFERROR(LOOKUP(,-1/ISERROR(MATCH(Предмет_договора,B$1:B62,))/(КОСГУ=B$1),Предмет_договора),)","v":0},{"$f":"IFERROR(LOOKUP(,-1/ISERROR(MATCH(Предмет_договора,C$1:C62,))/(КОСГУ=C$1),Предмет_договора),)","v":0},{"$f":"IFERROR(LOOKUP(,-1/ISERROR(MATCH(Предмет_договора,D$1:D62,))/(КОСГУ=D$1),Предмет_договора),)","v":0},{"$f":"IFERROR(LOOKUP(,-1/ISERROR(MATCH(Предмет_договора,E$1:E62,))/(КОСГУ=E$1),Предмет_договора),)","v":0},{"$f":"IFERROR(LOOKUP(,-1/ISERROR(MATCH(Предмет_договора,F$1:F62,))/(КОСГУ=F$1),Предмет_договора),)","v":0},{"$f":"IFERROR(LOOKUP(,-1/ISERROR(MATCH(Предмет_договора,G$1:G62,))/(КОСГУ=G$1),Предмет_договора),)","v":0},{"$f":"IFERROR(LOOKUP(,-1/ISERROR(MATCH(Предмет_договора,H$1:H62,))/(КОСГУ=H$1),Предмет_договора),)","v":0},{"$f":"IFERROR(LOOKUP(,-1/ISERROR(MATCH(Предмет_договора,I$1:I62,))/(КОСГУ=I$1),Предмет_договора),)","v":0},{"$f":"IFERROR(LOOKUP(,-1/ISERROR(MATCH(Предмет_договора,J$1:J62,))/(КОСГУ=J$1),Предмет_договора),)","v":0}]
[null,{"$f":"IFERROR(LOOKUP(,-1/ISERROR(MATCH(Предмет_договора,B$1:B63,))/(КОСГУ=B$1),Предмет_договора),)","v":0},{"$f":"IFERROR(LOOKUP(,-1/ISERROR(MATCH(Предмет_договора,C$1:C63,))/(КОСГУ=C$1),Предмет_договора),)","v":0},{"$f":"IFERROR(LOOKUP(,-1/ISERROR(MATCH(Предмет_договора,D$1:D63,))/(КОСГУ=D$1),Предмет_договора),)","v":0},{"$f":"IFERROR(LOOKUP(,-1/ISERROR(MATCH(Предмет_договора,E$1:E63,))/(КОСГУ=E$1),Предмет_договора),)","v":0},{"$f":"IFERROR(LOOKUP(,-1/ISERROR(MATCH(Предмет_договора,F$1:F63,))/(КОСГУ=F$1),Предмет_договора),)","v":0},{"$f":"IFERROR(LOOKUP(,-1/ISERROR(MATCH(Предмет_договора,G$1:G63,))/(КОСГУ=G$1),Предмет_договора),)","v":0},{"$f":"IFERROR(LOOKUP(,-1/ISERROR(MATCH(Предмет_договора,H$1:H63,))/(КОСГУ=H$1),Предмет_договора),)","v":0},{"$f":"IFERROR(LOOKUP(,-1/ISERROR(MATCH(Предмет_договора,I$1:I63,))/(КОСГУ=I$1),Предмет_договора),)","v":0},{"$f":"IFERROR(LOOKUP(,-1/ISERROR(MATCH(Предмет_договора,J$1:J63,))/(КОСГУ=J$1),Предмет_договора),)","v":0}]
[null,{"$f":"IFERROR(LOOKUP(,-1/ISERROR(MATCH(Предмет_договора,B$1:B64,))/(КОСГУ=B$1),Предмет_договора),)","v":0},{"$f":"IFERROR(LOOKUP(,-1/ISERROR(MATCH(Предмет_договора,C$1:C64,))/(КОСГУ=C$1),Предмет_договора),)","v":0},{"$f":"IFERROR(LOOKUP(,-1/ISERROR(MATCH(Предмет_договора,D$1:D64,))/(КОСГУ=D$1),Предмет_договора),)","v":0},{"$f":"IFERROR(LOOKUP(,-1/ISERROR(MATCH(Предмет_договора,E$1:E64,))/(КОСГУ=E$1),Предмет_договора),)","v":0},{"$f":"IFERROR(LOOKUP(,-1/ISERROR(MATCH(Предмет_договора,F$1:F64,))/(КОСГУ=F$1),Предмет_договора),)","v":0},{"$f":"IFERROR(LOOKUP(,-1/ISERROR(MATCH(Предмет_договора,G$1:G64,))/(КОСГУ=G$1),Предмет_договора),)","v":0},{"$f":"IFERROR(LOOKUP(,-1/ISERROR(MATCH(Предмет_договора,H$1:H64,))/(КОСГУ=H$1),Предмет_договора),)","v":0},{"$f":"IFERROR(LOOKUP(,-1/ISERROR(MATCH(Предмет_договора,I$1:I64,))/(КОСГУ=I$1),Предмет_договора),)","v":0},{"$f":"IFERROR(LOOKUP(,-1/ISERROR(MATCH(Предмет_договора,J$1:J64,))/(КОСГУ=J$1),Предмет_договора),)","v":0}]
[null,{"$f":"IFERROR(LOOKUP(,-1/ISERROR(MATCH(Предмет_договора,B$1:B65,))/(КОСГУ=B$1),Предмет_договора),)","v":0},{"$f":"IFERROR(LOOKUP(,-1/ISERROR(MATCH(Предмет_договора,C$1:C65,))/(КОСГУ=C$1),Предмет_договора),)","v":0},{"$f":"IFERROR(LOOKUP(,-1/ISERROR(MATCH(Предмет_договора,D$1:D65,))/(КОСГУ=D$1),Предмет_договора),)","v":0},{"$f":"IFERROR(LOOKUP(,-1/ISERROR(MATCH(Предмет_договора,E$1:E65,))/(КОСГУ=E$1),Предмет_договора),)","v":0},{"$f":"IFERROR(LOOKUP(,-1/ISERROR(MATCH(Предмет_договора,F$1:F65,))/(КОСГУ=F$1),Предмет_договора),)","v":0},{"$f":"IFERROR(LOOKUP(,-1/ISERROR(MATCH(Предмет_договора,G$1:G65,))/(КОСГУ=G$1),Предмет_договора),)","v":0},{"$f":"IFERROR(LOOKUP(,-1/ISERROR(MATCH(Предмет_договора,H$1:H65,))/(КОСГУ=H$1),Предмет_договора),)","v":0},{"$f":"IFERROR(LOOKUP(,-1/ISERROR(MATCH(Предмет_договора,I$1:I65,))/(КОСГУ=I$1),Предмет_договора),)","v":0},{"$f":"IFERROR(LOOKUP(,-1/ISERROR(MATCH(Предмет_договора,J$1:J65,))/(КОСГУ=J$1),Предмет_договора),)","v":0}]
[null,{"$f":"IFERROR(LOOKUP(,-1/ISERROR(MATCH(Предмет_договора,B$1:B66,))/(КОСГУ=B$1),Предмет_договора),)","v":0},{"$f":"IFERROR(LOOKUP(,-1/ISERROR(MATCH(Предмет_договора,C$1:C66,))/(КОСГУ=C$1),Предмет_договора),)","v":0},{"$f":"IFERROR(LOOKUP(,-1/ISERROR(MATCH(Предмет_договора,D$1:D66,))/(КОСГУ=D$1),Предмет_договора),)","v":0},{"$f":"IFERROR(LOOKUP(,-1/ISERROR(MATCH(Предмет_договора,E$1:E66,))/(КОСГУ=E$1),Предмет_договора),)","v":0},{"$f":"IFERROR(LOOKUP(,-1/ISERROR(MATCH(Предмет_договора,F$1:F66,))/(КОСГУ=F$1),Предмет_договора),)","v":0},{"$f":"IFERROR(LOOKUP(,-1/ISERROR(MATCH(Предмет_договора,G$1:G66,))/(КОСГУ=G$1),Предмет_договора),)","v":0},{"$f":"IFERROR(LOOKUP(,-1/ISERROR(MATCH(Предмет_договора,H$1:H66,))/(КОСГУ=H$1),Предмет_договора),)","v":0},{"$f":"IFERROR(LOOKUP(,-1/ISERROR(MATCH(Предмет_договора,I$1:I66,))/(КОСГУ=I$1),Предмет_договора),)","v":0},{"$f":"IFERROR(LOOKUP(,-1/ISERROR(MATCH(Предмет_договора,J$1:J66,))/(КОСГУ=J$1),Предмет_договора),)","v":0}]
[null,{"$f":"IFERROR(LOOKUP(,-1/ISERROR(MATCH(Предмет_договора,B$1:B67,))/(КОСГУ=B$1),Предмет_договора),)","v":0},{"$f":"IFERROR(LOOKUP(,-1/ISERROR(MATCH(Предмет_договора,C$1:C67,))/(КОСГУ=C$1),Предмет_договора),)","v":0},{"$f":"IFERROR(LOOKUP(,-1/ISERROR(MATCH(Предмет_договора,D$1:D67,))/(КОСГУ=D$1),Предмет_договора),)","v":0},{"$f":"IFERROR(LOOKUP(,-1/ISERROR(MATCH(Предмет_договора,E$1:E67,))/(КОСГУ=E$1),Предмет_договора),)","v":0},{"$f":"IFERROR(LOOKUP(,-1/ISERROR(MATCH(Предмет_договора,F$1:F67,))/(КОСГУ=F$1),Предмет_договора),)","v":0},{"$f":"IFERROR(LOOKUP(,-1/ISERROR(MATCH(Предмет_договора,G$1:G67,))/(КОСГУ=G$1),Предмет_договора),)","v":0},{"$f":"IFERROR(LOOKUP(,-1/ISERROR(MATCH(Предмет_договора,H$1:H67,))/(КОСГУ=H$1),Предмет_договора),)","v":0},{"$f":"IFERROR(LOOKUP(,-1/ISERROR(MATCH(Предмет_договора,I$1:I67,))/(КОСГУ=I$1),Предмет_договора),)","v":0},{"$f":"IFERROR(LOOKUP(,-1/ISERROR(MATCH(Предмет_договора,J$1:J67,))/(КОСГУ=J$1),Предмет_договора),)","v":0}]
[null,{"$f":"IFERROR(LOOKUP(,-1/ISERROR(MATCH(Предмет_договора,B$1:B68,))/(КОСГУ=B$1),Предмет_договора),)","v":0},{"$f":"IFERROR(LOOKUP(,-1/ISERROR(MATCH(Предмет_договора,C$1:C68,))/(КОСГУ=C$1),Предмет_договора),)","v":0},{"$f":"IFERROR(LOOKUP(,-1/ISERROR(MATCH(Предмет_договора,D$1:D68,))/(КОСГУ=D$1),Предмет_договора),)","v":0},{"$f":"IFERROR(LOOKUP(,-1/ISERROR(MATCH(Предмет_договора,E$1:E68,))/(КОСГУ=E$1),Предмет_договора),)","v":0},{"$f":"IFERROR(LOOKUP(,-1/ISERROR(MATCH(Предмет_договора,F$1:F68,))/(КОСГУ=F$1),Предмет_договора),)","v":0},{"$f":"IFERROR(LOOKUP(,-1/ISERROR(MATCH(Предмет_договора,G$1:G68,))/(КОСГУ=G$1),Предмет_договора),)","v":0},{"$f":"IFERROR(LOOKUP(,-1/ISERROR(MATCH(Предмет_договора,H$1:H68,))/(КОСГУ=H$1),Предмет_договора),)","v":0},{"$f":"IFERROR(LOOKUP(,-1/ISERROR(MATCH(Предмет_договора,I$1:I68,))/(КОСГУ=I$1),Предмет_договора),)","v":0},{"$f":"IFERROR(LOOKUP(,-1/ISERROR(MATCH(Предмет_договора,J$1:J68,))/(КОСГУ=J$1),Предмет_договора),)","v":0}]
[null,{"$f":"IFERROR(LOOKUP(,-1/ISERROR(MATCH(Предмет_договора,B$1:B69,))/(КОСГУ=B$1),Предмет_договора),)","v":0},{"$f":"IFERROR(LOOKUP(,-1/ISERROR(MATCH(Предмет_договора,C$1:C69,))/(КОСГУ=C$1),Предмет_договора),)","v":0},{"$f":"IFERROR(LOOKUP(,-1/ISERROR(MATCH(Предмет_договора,D$1:D69,))/(КОСГУ=D$1),Предмет_договора),)","v":0},{"$f":"IFERROR(LOOKUP(,-1/ISERROR(MATCH(Предмет_договора,E$1:E69,))/(КОСГУ=E$1),Предмет_договора),)","v":0},{"$f":"IFERROR(LOOKUP(,-1/ISERROR(MATCH(Предмет_договора,F$1:F69,))/(КОСГУ=F$1),Предмет_договора),)","v":0},{"$f":"IFERROR(LOOKUP(,-1/ISERROR(MATCH(Предмет_договора,G$1:G69,))/(КОСГУ=G$1),Предмет_договора),)","v":0},{"$f":"IFERROR(LOOKUP(,-1/ISERROR(MATCH(Предмет_договора,H$1:H69,))/(КОСГУ=H$1),Предмет_договора),)","v":0},{"$f":"IFERROR(LOOKUP(,-1/ISERROR(MATCH(Предмет_договора,I$1:I69,))/(КОСГУ=I$1),Предмет_договора),)","v":0},{"$f":"IFERROR(LOOKUP(,-1/ISERROR(MATCH(Предмет_договора,J$1:J69,))/(КОСГУ=J$1),Предмет_договора),)","v":0}]
[null,{"$f":"IFERROR(LOOKUP(,-1/ISERROR(MATCH(Предмет_договора,B$1:B70,))/(КОСГУ=B$1),Предмет_договора),)","v":0},{"$f":"IFERROR(LOOKUP(,-1/ISERROR(MATCH(Предмет_договора,C$1:C70,))/(КОСГУ=C$1),Предмет_договора),)","v":0},{"$f":"IFERROR(LOOKUP(,-1/ISERROR(MATCH(Предмет_договора,D$1:D70,))/(КОСГУ=D$1),Предмет_договора),)","v":0},{"$f":"IFERROR(LOOKUP(,-1/ISERROR(MATCH(Предмет_договора,E$1:E70,))/(КОСГУ=E$1),Предмет_договора),)","v":0},{"$f":"IFERROR(LOOKUP(,-1/ISERROR(MATCH(Предмет_договора,F$1:F70,))/(КОСГУ=F$1),Предмет_договора),)","v":0},{"$f":"IFERROR(LOOKUP(,-1/ISERROR(MATCH(Предмет_договора,G$1:G70,))/(КОСГУ=G$1),Предмет_договора),)","v":0},{"$f":"IFERROR(LOOKUP(,-1/ISERROR(MATCH(Предмет_договора,H$1:H70,))/(КОСГУ=H$1),Предмет_договора),)","v":0},{"$f":"IFERROR(LOOKUP(,-1/ISERROR(MATCH(Предмет_договора,I$1:I70,))/(КОСГУ=I$1),Предмет_договора),)","v":0},{"$f":"IFERROR(LOOKUP(,-1/ISERROR(MATCH(Предмет_договора,J$1:J70,))/(КОСГУ=J$1),Предмет_договора),)","v":0}]
[null,{"$f":"IFERROR(LOOKUP(,-1/ISERROR(MATCH(Предмет_договора,B$1:B71,))/(КОСГУ=B$1),Предмет_договора),)","v":0},{"$f":"IFERROR(LOOKUP(,-1/ISERROR(MATCH(Предмет_договора,C$1:C71,))/(КОСГУ=C$1),Предмет_договора),)","v":0},{"$f":"IFERROR(LOOKUP(,-1/ISERROR(MATCH(Предмет_договора,D$1:D71,))/(КОСГУ=D$1),Предмет_договора),)","v":0},{"$f":"IFERROR(LOOKUP(,-1/ISERROR(MATCH(Предмет_договора,E$1:E71,))/(КОСГУ=E$1),Предмет_договора),)","v":0},{"$f":"IFERROR(LOOKUP(,-1/ISERROR(MATCH(Предмет_договора,F$1:F71,))/(КОСГУ=F$1),Предмет_договора),)","v":0},{"$f":"IFERROR(LOOKUP(,-1/ISERROR(MATCH(Предмет_договора,G$1:G71,))/(КОСГУ=G$1),Предмет_договора),)","v":0},{"$f":"IFERROR(LOOKUP(,-1/ISERROR(MATCH(Предмет_договора,H$1:H71,))/(КОСГУ=H$1),Предмет_договора),)","v":0},{"$f":"IFERROR(LOOKUP(,-1/ISERROR(MATCH(Предмет_договора,I$1:I71,))/(КОСГУ=I$1),Предмет_договора),)","v":0},{"$f":"IFERROR(LOOKUP(,-1/ISERROR(MATCH(Предмет_договора,J$1:J71,))/(КОСГУ=J$1),Предмет_договора),)","v":0}]
[null,{"$f":"IFERROR(LOOKUP(,-1/ISERROR(MATCH(Предмет_договора,B$1:B72,))/(КОСГУ=B$1),Предмет_договора),)","v":0},{"$f":"IFERROR(LOOKUP(,-1/ISERROR(MATCH(Предмет_договора,C$1:C72,))/(КОСГУ=C$1),Предмет_договора),)","v":0},{"$f":"IFERROR(LOOKUP(,-1/ISERROR(MATCH(Предмет_договора,D$1:D72,))/(КОСГУ=D$1),Предмет_договора),)","v":0},{"$f":"IFERROR(LOOKUP(,-1/ISERROR(MATCH(Предмет_договора,E$1:E72,))/(КОСГУ=E$1),Предмет_договора),)","v":0},{"$f":"IFERROR(LOOKUP(,-1/ISERROR(MATCH(Предмет_договора,F$1:F72,))/(КОСГУ=F$1),Предмет_договора),)","v":0},{"$f":"IFERROR(LOOKUP(,-1/ISERROR(MATCH(Предмет_договора,G$1:G72,))/(КОСГУ=G$1),Предмет_договора),)","v":0},{"$f":"IFERROR(LOOKUP(,-1/ISERROR(MATCH(Предмет_договора,H$1:H72,))/(КОСГУ=H$1),Предмет_договора),)","v":0},{"$f":"IFERROR(LOOKUP(,-1/ISERROR(MATCH(Предмет_договора,I$1:I72,))/(КОСГУ=I$1),Предмет_договора),)","v":0},{"$f":"IFERROR(LOOKUP(,-1/ISERROR(MATCH(Предмет_договора,J$1:J72,))/(КОСГУ=J$1),Предмет_договора),)","v":0}]
[null,{"$f":"IFERROR(LOOKUP(,-1/ISERROR(MATCH(Предмет_договора,B$1:B73,))/(КОСГУ=B$1),Предмет_договора),)","v":0},{"$f":"IFERROR(LOOKUP(,-1/ISERROR(MATCH(Предмет_договора,C$1:C73,))/(КОСГУ=C$1),Предмет_договора),)","v":0},{"$f":"IFERROR(LOOKUP(,-1/ISERROR(MATCH(Предмет_договора,D$1:D73,))/(КОСГУ=D$1),Предмет_договора),)","v":0},{"$f":"IFERROR(LOOKUP(,-1/ISERROR(MATCH(Предмет_договора,E$1:E73,))/(КОСГУ=E$1),Предмет_договора),)","v":0},{"$f":"IFERROR(LOOKUP(,-1/ISERROR(MATCH(Предмет_договора,F$1:F73,))/(КОСГУ=F$1),Предмет_договора),)","v":0},{"$f":"IFERROR(LOOKUP(,-1/ISERROR(MATCH(Предмет_договора,G$1:G73,))/(КОСГУ=G$1),Предмет_договора),)","v":0},{"$f":"IFERROR(LOOKUP(,-1/ISERROR(MATCH(Предмет_договора,H$1:H73,))/(КОСГУ=H$1),Предмет_договора),)","v":0},{"$f":"IFERROR(LOOKUP(,-1/ISERROR(MATCH(Предмет_договора,I$1:I73,))/(КОСГУ=I$1),Предмет_договора),)","v":0},{"$f":"IFERROR(LOOKUP(,-1/ISERROR(MATCH(Предмет_договора,J$1:J73,))/(КОСГУ=J$1),Предмет_договора),)","v":0}]
[null,{"$f":"IFERROR(LOOKUP(,-1/ISERROR(MATCH(Предмет_договора,B$1:B74,))/(КОСГУ=B$1),Предмет_договора),)","v":0},{"$f":"IFERROR(LOOKUP(,-1/ISERROR(MATCH(Предмет_договора,C$1:C74,))/(КОСГУ=C$1),Предмет_договора),)","v":0},{"$f":"IFERROR(LOOKUP(,-1/ISERROR(MATCH(Предмет_договора,D$1:D74,))/(КОСГУ=D$1),Предмет_договора),)","v":0},{"$f":"IFERROR(LOOKUP(,-1/ISERROR(MATCH(Предмет_договора,E$1:E74,))/(КОСГУ=E$1),Предмет_договора),)","v":0},{"$f":"IFERROR(LOOKUP(,-1/ISERROR(MATCH(Предмет_договора,F$1:F74,))/(КОСГУ=F$1),Предмет_договора),)","v":0},{"$f":"IFERROR(LOOKUP(,-1/ISERROR(MATCH(Предмет_договора,G$1:G74,))/(КОСГУ=G$1),Предмет_договора),)","v":0},{"$f":"IFERROR(LOOKUP(,-1/ISERROR(MATCH(Предмет_договора,H$1:H74,))/(КОСГУ=H$1),Предмет_договора),)","v":0},{"$f":"IFERROR(LOOKUP(,-1/ISERROR(MATCH(Предмет_договора,I$1:I74,))/(КОСГУ=I$1),Предмет_договора),)","v":0},{"$f":"IFERROR(LOOKUP(,-1/ISERROR(MATCH(Предмет_договора,J$1:J74,))/(КОСГУ=J$1),Предмет_договора),)","v":0}]
[null,{"$f":"IFERROR(LOOKUP(,-1/ISERROR(MATCH(Предмет_договора,B$1:B75,))/(КОСГУ=B$1),Предмет_договора),)","v":0},{"$f":"IFERROR(LOOKUP(,-1/ISERROR(MATCH(Предмет_договора,C$1:C75,))/(КОСГУ=C$1),Предмет_договора),)","v":0},{"$f":"IFERROR(LOOKUP(,-1/ISERROR(MATCH(Предмет_договора,D$1:D75,))/(КОСГУ=D$1),Предмет_договора),)","v":0},{"$f":"IFERROR(LOOKUP(,-1/ISERROR(MATCH(Предмет_договора,E$1:E75,))/(КОСГУ=E$1),Предмет_договора),)","v":0},{"$f":"IFERROR(LOOKUP(,-1/ISERROR(MATCH(Предмет_договора,F$1:F75,))/(КОСГУ=F$1),Предмет_договора),)","v":0},{"$f":"IFERROR(LOOKUP(,-1/ISERROR(MATCH(Предмет_договора,G$1:G75,))/(КОСГУ=G$1),Предмет_договора),)","v":0},{"$f":"IFERROR(LOOKUP(,-1/ISERROR(MATCH(Предмет_договора,H$1:H75,))/(КОСГУ=H$1),Предмет_договора),)","v":0},{"$f":"IFERROR(LOOKUP(,-1/ISERROR(MATCH(Предмет_договора,I$1:I75,))/(КОСГУ=I$1),Предмет_договора),)","v":0},{"$f":"IFERROR(LOOKUP(,-1/ISERROR(MATCH(Предмет_договора,J$1:J75,))/(КОСГУ=J$1),Предмет_договора),)","v":0}]
[null,{"$f":"IFERROR(LOOKUP(,-1/ISERROR(MATCH(Предмет_договора,B$1:B76,))/(КОСГУ=B$1),Предмет_договора),)","v":0},{"$f":"IFERROR(LOOKUP(,-1/ISERROR(MATCH(Предмет_договора,C$1:C76,))/(КОСГУ=C$1),Предмет_договора),)","v":0},{"$f":"IFERROR(LOOKUP(,-1/ISERROR(MATCH(Предмет_договора,D$1:D76,))/(КОСГУ=D$1),Предмет_договора),)","v":0},{"$f":"IFERROR(LOOKUP(,-1/ISERROR(MATCH(Предмет_договора,E$1:E76,))/(КОСГУ=E$1),Предмет_договора),)","v":0},{"$f":"IFERROR(LOOKUP(,-1/ISERROR(MATCH(Предмет_договора,F$1:F76,))/(КОСГУ=F$1),Предмет_договора),)","v":0},{"$f":"IFERROR(LOOKUP(,-1/ISERROR(MATCH(Предмет_договора,G$1:G76,))/(КОСГУ=G$1),Предмет_договора),)","v":0},{"$f":"IFERROR(LOOKUP(,-1/ISERROR(MATCH(Предмет_договора,H$1:H76,))/(КОСГУ=H$1),Предмет_договора),)","v":0},{"$f":"IFERROR(LOOKUP(,-1/ISERROR(MATCH(Предмет_договора,I$1:I76,))/(КОСГУ=I$1),Предмет_договора),)","v":0},{"$f":"IFERROR(LOOKUP(,-1/ISERROR(MATCH(Предмет_договора,J$1:J76,))/(КОСГУ=J$1),Предмет_договора),)","v":0}]
[null,{"$f":"IFERROR(LOOKUP(,-1/ISERROR(MATCH(Предмет_договора,B$1:B77,))/(КОСГУ=B$1),Предмет_договора),)","v":0},{"$f":"IFERROR(LOOKUP(,-1/ISERROR(MATCH(Предмет_договора,C$1:C77,))/(КОСГУ=C$1),Предмет_договора),)","v":0},{"$f":"IFERROR(LOOKUP(,-1/ISERROR(MATCH(Предмет_договора,D$1:D77,))/(КОСГУ=D$1),Предмет_договора),)","v":0},{"$f":"IFERROR(LOOKUP(,-1/ISERROR(MATCH(Предмет_договора,E$1:E77,))/(КОСГУ=E$1),Предмет_договора),)","v":0},{"$f":"IFERROR(LOOKUP(,-1/ISERROR(MATCH(Предмет_договора,F$1:F77,))/(КОСГУ=F$1),Предмет_договора),)","v":0},{"$f":"IFERROR(LOOKUP(,-1/ISERROR(MATCH(Предмет_договора,G$1:G77,))/(КОСГУ=G$1),Предмет_договора),)","v":0},{"$f":"IFERROR(LOOKUP(,-1/ISERROR(MATCH(Предмет_договора,H$1:H77,))/(КОСГУ=H$1),Предмет_договора),)","v":0},{"$f":"IFERROR(LOOKUP(,-1/ISERROR(MATCH(Предмет_договора,I$1:I77,))/(КОСГУ=I$1),Предмет_договора),)","v":0},{"$f":"IFERROR(LOOKUP(,-1/ISERROR(MATCH(Предмет_договора,J$1:J77,))/(КОСГУ=J$1),Предмет_договора),)","v":0}]
[null,{"$f":"IFERROR(LOOKUP(,-1/ISERROR(MATCH(Предмет_договора,B$1:B78,))/(КОСГУ=B$1),Предмет_договора),)","v":0},{"$f":"IFERROR(LOOKUP(,-1/ISERROR(MATCH(Предмет_договора,C$1:C78,))/(КОСГУ=C$1),Предмет_договора),)","v":0},{"$f":"IFERROR(LOOKUP(,-1/ISERROR(MATCH(Предмет_договора,D$1:D78,))/(КОСГУ=D$1),Предмет_договора),)","v":0},{"$f":"IFERROR(LOOKUP(,-1/ISERROR(MATCH(Предмет_договора,E$1:E78,))/(КОСГУ=E$1),Предмет_договора),)","v":0},{"$f":"IFERROR(LOOKUP(,-1/ISERROR(MATCH(Предмет_договора,F$1:F78,))/(КОСГУ=F$1),Предмет_договора),)","v":0},{"$f":"IFERROR(LOOKUP(,-1/ISERROR(MATCH(Предмет_договора,G$1:G78,))/(КОСГУ=G$1),Предмет_договора),)","v":0},{"$f":"IFERROR(LOOKUP(,-1/ISERROR(MATCH(Предмет_договора,H$1:H78,))/(КОСГУ=H$1),Предмет_договора),)","v":0},{"$f":"IFERROR(LOOKUP(,-1/ISERROR(MATCH(Предмет_договора,I$1:I78,))/(КОСГУ=I$1),Предмет_договора),)","v":0},{"$f":"IFERROR(LOOKUP(,-1/ISERROR(MATCH(Предмет_договора,J$1:J78,))/(КОСГУ=J$1),Предмет_договора),)","v":0}]
[null,{"$f":"IFERROR(LOOKUP(,-1/ISERROR(MATCH(Предмет_договора,B$1:B79,))/(КОСГУ=B$1),Предмет_договора),)","v":0},{"$f":"IFERROR(LOOKUP(,-1/ISERROR(MATCH(Предмет_договора,C$1:C79,))/(КОСГУ=C$1),Предмет_договора),)","v":0},{"$f":"IFERROR(LOOKUP(,-1/ISERROR(MATCH(Предмет_договора,D$1:D79,))/(КОСГУ=D$1),Предмет_договора),)","v":0},{"$f":"IFERROR(LOOKUP(,-1/ISERROR(MATCH(Предмет_договора,E$1:E79,))/(КОСГУ=E$1),Предмет_договора),)","v":0},{"$f":"IFERROR(LOOKUP(,-1/ISERROR(MATCH(Предмет_договора,F$1:F79,))/(КОСГУ=F$1),Предмет_договора),)","v":0},{"$f":"IFERROR(LOOKUP(,-1/ISERROR(MATCH(Предмет_договора,G$1:G79,))/(КОСГУ=G$1),Предмет_договора),)","v":0},{"$f":"IFERROR(LOOKUP(,-1/ISERROR(MATCH(Предмет_договора,H$1:H79,))/(КОСГУ=H$1),Предмет_договора),)","v":0},{"$f":"IFERROR(LOOKUP(,-1/ISERROR(MATCH(Предмет_договора,I$1:I79,))/(КОСГУ=I$1),Предмет_договора),)","v":0},{"$f":"IFERROR(LOOKUP(,-1/ISERROR(MATCH(Предмет_договора,J$1:J79,))/(КОСГУ=J$1),Предмет_договора),)","v":0}]
[null,{"$f":"IFERROR(LOOKUP(,-1/ISERROR(MATCH(Предмет_договора,B$1:B80,))/(КОСГУ=B$1),Предмет_договора),)","v":0},{"$f":"IFERROR(LOOKUP(,-1/ISERROR(MATCH(Предмет_договора,C$1:C80,))/(КОСГУ=C$1),Предмет_договора),)","v":0},{"$f":"IFERROR(LOOKUP(,-1/ISERROR(MATCH(Предмет_договора,D$1:D80,))/(КОСГУ=D$1),Предмет_договора),)","v":0},{"$f":"IFERROR(LOOKUP(,-1/ISERROR(MATCH(Предмет_договора,E$1:E80,))/(КОСГУ=E$1),Предмет_договора),)","v":0},{"$f":"IFERROR(LOOKUP(,-1/ISERROR(MATCH(Предмет_договора,F$1:F80,))/(КОСГУ=F$1),Предмет_договора),)","v":0},{"$f":"IFERROR(LOOKUP(,-1/ISERROR(MATCH(Предмет_договора,G$1:G80,))/(КОСГУ=G$1),Предмет_договора),)","v":0},{"$f":"IFERROR(LOOKUP(,-1/ISERROR(MATCH(Предмет_договора,H$1:H80,))/(КОСГУ=H$1),Предмет_договора),)","v":0},{"$f":"IFERROR(LOOKUP(,-1/ISERROR(MATCH(Предмет_договора,I$1:I80,))/(КОСГУ=I$1),Предмет_договора),)","v":0},{"$f":"IFERROR(LOOKUP(,-1/ISERROR(MATCH(Предмет_договора,J$1:J80,))/(КОСГУ=J$1),Предмет_договора),)","v":0}]
[null,{"$f":"IFERROR(LOOKUP(,-1/ISERROR(MATCH(Предмет_договора,B$1:B81,))/(КОСГУ=B$1),Предмет_договора),)","v":0},{"$f":"IFERROR(LOOKUP(,-1/ISERROR(MATCH(Предмет_договора,C$1:C81,))/(КОСГУ=C$1),Предмет_договора),)","v":0},{"$f":"IFERROR(LOOKUP(,-1/ISERROR(MATCH(Предмет_договора,D$1:D81,))/(КОСГУ=D$1),Предмет_договора),)","v":0},{"$f":"IFERROR(LOOKUP(,-1/ISERROR(MATCH(Предмет_договора,E$1:E81,))/(КОСГУ=E$1),Предмет_договора),)","v":0},{"$f":"IFERROR(LOOKUP(,-1/ISERROR(MATCH(Предмет_договора,F$1:F81,))/(КОСГУ=F$1),Предмет_договора),)","v":0},{"$f":"IFERROR(LOOKUP(,-1/ISERROR(MATCH(Предмет_договора,G$1:G81,))/(КОСГУ=G$1),Предмет_договора),)","v":0},{"$f":"IFERROR(LOOKUP(,-1/ISERROR(MATCH(Предмет_договора,H$1:H81,))/(КОСГУ=H$1),Предмет_договора),)","v":0},{"$f":"IFERROR(LOOKUP(,-1/ISERROR(MATCH(Предмет_договора,I$1:I81,))/(КОСГУ=I$1),Предмет_договора),)","v":0},{"$f":"IFERROR(LOOKUP(,-1/ISERROR(MATCH(Предмет_договора,J$1:J81,))/(КОСГУ=J$1),Предмет_договора),)","v":0}]
[null,{"$f":"IFERROR(LOOKUP(,-1/ISERROR(MATCH(Предмет_договора,B$1:B82,))/(КОСГУ=B$1),Предмет_договора),)","v":0},{"$f":"IFERROR(LOOKUP(,-1/ISERROR(MATCH(Предмет_договора,C$1:C82,))/(КОСГУ=C$1),Предмет_договора),)","v":0},{"$f":"IFERROR(LOOKUP(,-1/ISERROR(MATCH(Предмет_договора,D$1:D82,))/(КОСГУ=D$1),Предмет_договора),)","v":0},{"$f":"IFERROR(LOOKUP(,-1/ISERROR(MATCH(Предмет_договора,E$1:E82,))/(КОСГУ=E$1),Предмет_договора),)","v":0},{"$f":"IFERROR(LOOKUP(,-1/ISERROR(MATCH(Предмет_договора,F$1:F82,))/(КОСГУ=F$1),Предмет_договора),)","v":0},{"$f":"IFERROR(LOOKUP(,-1/ISERROR(MATCH(Предмет_договора,G$1:G82,))/(КОСГУ=G$1),Предмет_договора),)","v":0},{"$f":"IFERROR(LOOKUP(,-1/ISERROR(MATCH(Предмет_договора,H$1:H82,))/(КОСГУ=H$1),Предмет_договора),)","v":0},{"$f":"IFERROR(LOOKUP(,-1/ISERROR(MATCH(Предмет_договора,I$1:I82,))/(КОСГУ=I$1),Предмет_договора),)","v":0},{"$f":"IFERROR(LOOKUP(,-1/ISERROR(MATCH(Предмет_договора,J$1:J82,))/(КОСГУ=J$1),Предмет_договора),)","v":0}]
[null,{"$f":"IFERROR(LOOKUP(,-1/ISERROR(MATCH(Предмет_договора,B$1:B83,))/(КОСГУ=B$1),Предмет_договора),)","v":0},{"$f":"IFERROR(LOOKUP(,-1/ISERROR(MATCH(Предмет_договора,C$1:C83,))/(КОСГУ=C$1),Предмет_договора),)","v":0},{"$f":"IFERROR(LOOKUP(,-1/ISERROR(MATCH(Предмет_договора,D$1:D83,))/(КОСГУ=D$1),Предмет_договора),)","v":0},{"$f":"IFERROR(LOOKUP(,-1/ISERROR(MATCH(Предмет_договора,E$1:E83,))/(КОСГУ=E$1),Предмет_договора),)","v":0},{"$f":"IFERROR(LOOKUP(,-1/ISERROR(MATCH(Предмет_договора,F$1:F83,))/(КОСГУ=F$1),Предмет_договора),)","v":0},{"$f":"IFERROR(LOOKUP(,-1/ISERROR(MATCH(Предмет_договора,G$1:G83,))/(КОСГУ=G$1),Предмет_договора),)","v":0},{"$f":"IFERROR(LOOKUP(,-1/ISERROR(MATCH(Предмет_договора,H$1:H83,))/(КОСГУ=H$1),Предмет_договора),)","v":0},{"$f":"IFERROR(LOOKUP(,-1/ISERROR(MATCH(Предмет_договора,I$1:I83,))/(КОСГУ=I$1),Предмет_договора),)","v":0},{"$f":"IFERROR(LOOKUP(,-1/ISERROR(MATCH(Предмет_договора,J$1:J83,))/(КОСГУ=J$1),Предмет_договора),)","v":0}]
[null,{"$f":"IFERROR(LOOKUP(,-1/ISERROR(MATCH(Предмет_договора,B$1:B84,))/(КОСГУ=B$1),Предмет_договора),)","v":0},{"$f":"IFERROR(LOOKUP(,-1/ISERROR(MATCH(Предмет_договора,C$1:C84,))/(КОСГУ=C$1),Предмет_договора),)","v":0},{"$f":"IFERROR(LOOKUP(,-1/ISERROR(MATCH(Предмет_договора,D$1:D84,))/(КОСГУ=D$1),Предмет_договора),)","v":0},{"$f":"IFERROR(LOOKUP(,-1/ISERROR(MATCH(Предмет_договора,E$1:E84,))/(КОСГУ=E$1),Предмет_договора),)","v":0},{"$f":"IFERROR(LOOKUP(,-1/ISERROR(MATCH(Предмет_договора,F$1:F84,))/(КОСГУ=F$1),Предмет_договора),)","v":0},{"$f":"IFERROR(LOOKUP(,-1/ISERROR(MATCH(Предмет_договора,G$1:G84,))/(КОСГУ=G$1),Предмет_договора),)","v":0},{"$f":"IFERROR(LOOKUP(,-1/ISERROR(MATCH(Предмет_договора,H$1:H84,))/(КОСГУ=H$1),Предмет_договора),)","v":0},{"$f":"IFERROR(LOOKUP(,-1/ISERROR(MATCH(Предмет_договора,I$1:I84,))/(КОСГУ=I$1),Предмет_договора),)","v":0},{"$f":"IFERROR(LOOKUP(,-1/ISERROR(MATCH(Предмет_договора,J$1:J84,))/(КОСГУ=J$1),Предмет_договора),)","v":0}]
[null,{"$f":"IFERROR(LOOKUP(,-1/ISERROR(MATCH(Предмет_договора,B$1:B85,))/(КОСГУ=B$1),Предмет_договора),)","v":0},{"$f":"IFERROR(LOOKUP(,-1/ISERROR(MATCH(Предмет_договора,C$1:C85,))/(КОСГУ=C$1),Предмет_договора),)","v":0},{"$f":"IFERROR(LOOKUP(,-1/ISERROR(MATCH(Предмет_договора,D$1:D85,))/(КОСГУ=D$1),Предмет_договора),)","v":0},{"$f":"IFERROR(LOOKUP(,-1/ISERROR(MATCH(Предмет_договора,E$1:E85,))/(КОСГУ=E$1),Предмет_договора),)","v":0},{"$f":"IFERROR(LOOKUP(,-1/ISERROR(MATCH(Предмет_договора,F$1:F85,))/(КОСГУ=F$1),Предмет_договора),)","v":0},{"$f":"IFERROR(LOOKUP(,-1/ISERROR(MATCH(Предмет_договора,G$1:G85,))/(КОСГУ=G$1),Предмет_договора),)","v":0},{"$f":"IFERROR(LOOKUP(,-1/ISERROR(MATCH(Предмет_договора,H$1:H85,))/(КОСГУ=H$1),Предмет_договора),)","v":0},{"$f":"IFERROR(LOOKUP(,-1/ISERROR(MATCH(Предмет_договора,I$1:I85,))/(КОСГУ=I$1),Предмет_договора),)","v":0},{"$f":"IFERROR(LOOKUP(,-1/ISERROR(MATCH(Предмет_договора,J$1:J85,))/(КОСГУ=J$1),Предмет_договора),)","v":0}]
[null,{"$f":"IFERROR(LOOKUP(,-1/ISERROR(MATCH(Предмет_договора,B$1:B86,))/(КОСГУ=B$1),Предмет_договора),)","v":0},{"$f":"IFERROR(LOOKUP(,-1/ISERROR(MATCH(Предмет_договора,C$1:C86,))/(КОСГУ=C$1),Предмет_договора),)","v":0},{"$f":"IFERROR(LOOKUP(,-1/ISERROR(MATCH(Предмет_договора,D$1:D86,))/(КОСГУ=D$1),Предмет_договора),)","v":0},{"$f":"IFERROR(LOOKUP(,-1/ISERROR(MATCH(Предмет_договора,E$1:E86,))/(КОСГУ=E$1),Предмет_договора),)","v":0},{"$f":"IFERROR(LOOKUP(,-1/ISERROR(MATCH(Предмет_договора,F$1:F86,))/(КОСГУ=F$1),Предмет_договора),)","v":0},{"$f":"IFERROR(LOOKUP(,-1/ISERROR(MATCH(Предмет_договора,G$1:G86,))/(КОСГУ=G$1),Предмет_договора),)","v":0},{"$f":"IFERROR(LOOKUP(,-1/ISERROR(MATCH(Предмет_договора,H$1:H86,))/(КОСГУ=H$1),Предмет_договора),)","v":0},{"$f":"IFERROR(LOOKUP(,-1/ISERROR(MATCH(Предмет_договора,I$1:I86,))/(КОСГУ=I$1),Предмет_договора),)","v":0},{"$f":"IFERROR(LOOKUP(,-1/ISERROR(MATCH(Предмет_договора,J$1:J86,))/(КОСГУ=J$1),Предмет_договора),)","v":0}]
[null,{"$f":"IFERROR(LOOKUP(,-1/ISERROR(MATCH(Предмет_договора,B$1:B87,))/(КОСГУ=B$1),Предмет_договора),)","v":0},{"$f":"IFERROR(LOOKUP(,-1/ISERROR(MATCH(Предмет_договора,C$1:C87,))/(КОСГУ=C$1),Предмет_договора),)","v":0},{"$f":"IFERROR(LOOKUP(,-1/ISERROR(MATCH(Предмет_договора,D$1:D87,))/(КОСГУ=D$1),Предмет_договора),)","v":0},{"$f":"IFERROR(LOOKUP(,-1/ISERROR(MATCH(Предмет_договора,E$1:E87,))/(КОСГУ=E$1),Предмет_договора),)","v":0},{"$f":"IFERROR(LOOKUP(,-1/ISERROR(MATCH(Предмет_договора,F$1:F87,))/(КОСГУ=F$1),Предмет_договора),)","v":0},{"$f":"IFERROR(LOOKUP(,-1/ISERROR(MATCH(Предмет_договора,G$1:G87,))/(КОСГУ=G$1),Предмет_договора),)","v":0},{"$f":"IFERROR(LOOKUP(,-1/ISERROR(MATCH(Предмет_договора,H$1:H87,))/(КОСГУ=H$1),Предмет_договора),)","v":0},{"$f":"IFERROR(LOOKUP(,-1/ISERROR(MATCH(Предмет_договора,I$1:I87,))/(КОСГУ=I$1),Предмет_договора),)","v":0},{"$f":"IFERROR(LOOKUP(,-1/ISERROR(MATCH(Предмет_договора,J$1:J87,))/(КОСГУ=J$1),Предмет_договора),)","v":0}]
[null,{"$f":"IFERROR(LOOKUP(,-1/ISERROR(MATCH(Предмет_договора,B$1:B88,))/(КОСГУ=B$1),Предмет_договора),)","v":0},{"$f":"IFERROR(LOOKUP(,-1/ISERROR(MATCH(Предмет_договора,C$1:C88,))/(КОСГУ=C$1),Предмет_договора),)","v":0},{"$f":"IFERROR(LOOKUP(,-1/ISERROR(MATCH(Предмет_договора,D$1:D88,))/(КОСГУ=D$1),Предмет_договора),)","v":0},{"$f":"IFERROR(LOOKUP(,-1/ISERROR(MATCH(Предмет_договора,E$1:E88,))/(КОСГУ=E$1),Предмет_договора),)","v":0},{"$f":"IFERROR(LOOKUP(,-1/ISERROR(MATCH(Предмет_договора,F$1:F88,))/(КОСГУ=F$1),Предмет_договора),)","v":0},{"$f":"IFERROR(LOOKUP(,-1/ISERROR(MATCH(Предмет_договора,G$1:G88,))/(КОСГУ=G$1),Предмет_договора),)","v":0},{"$f":"IFERROR(LOOKUP(,-1/ISERROR(MATCH(Предмет_договора,H$1:H88,))/(КОСГУ=H$1),Предмет_договора),)","v":0},{"$f":"IFERROR(LOOKUP(,-1/ISERROR(MATCH(Предмет_договора,I$1:I88,))/(КОСГУ=I$1),Предмет_договора),)","v":0},{"$f":"IFERROR(LOOKUP(,-1/ISERROR(MATCH(Предмет_договора,J$1:J88,))/(КОСГУ=J$1),Предмет_договора),)","v":0}]
[null,{"$f":"IFERROR(LOOKUP(,-1/ISERROR(MATCH(Предмет_договора,B$1:B89,))/(КОСГУ=B$1),Предмет_договора),)","v":0},{"$f":"IFERROR(LOOKUP(,-1/ISERROR(MATCH(Предмет_договора,C$1:C89,))/(КОСГУ=C$1),Предмет_договора),)","v":0},{"$f":"IFERROR(LOOKUP(,-1/ISERROR(MATCH(Предмет_договора,D$1:D89,))/(КОСГУ=D$1),Предмет_договора),)","v":0},{"$f":"IFERROR(LOOKUP(,-1/ISERROR(MATCH(Предмет_договора,E$1:E89,))/(КОСГУ=E$1),Предмет_договора),)","v":0},{"$f":"IFERROR(LOOKUP(,-1/ISERROR(MATCH(Предмет_договора,F$1:F89,))/(КОСГУ=F$1),Предмет_договора),)","v":0},{"$f":"IFERROR(LOOKUP(,-1/ISERROR(MATCH(Предмет_договора,G$1:G89,))/(КОСГУ=G$1),Предмет_договора),)","v":0},{"$f":"IFERROR(LOOKUP(,-1/ISERROR(MATCH(Предмет_договора,H$1:H89,))/(КОСГУ=H$1),Предмет_договора),)","v":0},{"$f":"IFERROR(LOOKUP(,-1/ISERROR(MATCH(Предмет_договора,I$1:I89,))/(КОСГУ=I$1),Предмет_договора),)","v":0},{"$f":"IFERROR(LOOKUP(,-1/ISERROR(MATCH(Предмет_договора,J$1:J89,))/(КОСГУ=J$1),Предмет_договора),)","v":0}]

{"sheet":"Дополняемый блок","index":2,"n_rows":156,"n_cols":7,"rows_kept":156,"cut":false,"hidden":false,"merged":[]}
["Статья","Предмет"]
[221]
[221,"интернет"]
[221,"телефонная связь"]
[221,"мобильная связь"]
[221,"услуги связи скс"]
[222,"автотранспортное обслуживание"]
[223,"водоснабжение"]
[223,"газоснабжение",null,null,null,null,"Внебюджет"]
[223,"горячая вода",null,null,null,null,"Бюджет"]
[223,"канализирование"]
[]
[223,"коммунальные услуги"]
[]
[]
[223,"теплоэнергия"]
[]
[]
[223,"транспортировка газа"]
[224,"арендная плата (движимое имущество)"]
[224,"арендная плата (недвижимое имущество)"]
[223,"электроэнергия"]
[]
[225,"вывоз мед.отходов"]
[225,"вывоз тбо"]
[225,"дезинфекция, дезинсекция, дератизация"]
[]
[225,"демеркуризация люминисцентных ламп"]
[225,"замена въездных ворот"]
[225,"замена редуктора привода лифта"]
[225,"заправка картриджей"]
[225,"инженерное обследование"]
[225,"испытания электроустановок"]
[225,"капремонт"]
[225,"монтаж вентиляции"]
[225,"монтаж охранной сигнализации"]
[225,"наладка автоматики взу"]
[225,"обслуживание аквариума"]
[225,"огнезащитная обработка, противопожарные мероприятия"]
[225]
[225,"подготовка к отопительному сезону"]
[225,"ремонт и содержание имущества"]
[225,"ремонт кровли"]
[225,"ремонт ливневой канализации"]
[225,"ремонт металлических конструкций"]
[225,"то и ремонт оргтехники"]
[225,"ремонт офисных помещений"]
[225,"ремонт розеточной сети и освещения"]
[225,"ремонт сантех помещений"]
[225,"ремонт транспортных средств"]
[225,"ремонт фасада"]
[225,"содержание зданий и территорий"]
[225,"стирка белья"]
[225,"то автоматики водозаборного узла взу"]
[225,"то блокмодульной котельной"]
[225,"то вентиляционных систем"]
[225,"то внутреннего противопожарного водопровода"]
[225,"то газовой котельной"]
[225,"то газопровода"]
[225,"то и ремонт офисной техники"]
[225,"то климатической техники"]
[225,"то лифтов"]
[225,"то медицинской техники"]
[225,"то пожарной сигнализации"]
[225,"то приборов учета расхода газа"]
[225,"то средств охраны"]
[225,"то транспортных средств"]
[225,"тревожная кнопка"]
[225,"услуги по содержанию зданий и территорий"]
[225,"хоз-техническое обслуживание помещений"]
[226,"бухгалтерская отчетность"]
[226,"диагностирования сетей газопотребления"]
[226,"доступ к электронным изданиям"]
[226,"изготовление статьи и размещение"]
[226,"инкассация"]
[226,"информационные услуги"]
[226,"страхование ОСАГО"]
[226,"медицинский осмотр"]
[226,"лабораторные исследования"]
[226,"доступ к электронным изданиям"]
[226,"монтаж \"стрелец-мониторинг\""]
[226,"монтаж автоматической пожарной сигнализации"]
[226,"монтаж и украшение искусственных елей"]
[226,"монтаж кабельной сети"]
[226,"неисключительные права на использование учебных видеофильмов"]
[226,"образовательные услуги "]
[226,"обучение"]
[226,"оказание юридических услуг"]
[226,"организация конкурса волонтерских команд"]
[226,"доступ к электронным изданиям"]
[226,"охрана"]
[226,"оценочные услуги"]
[226,"повышение квалификации"]
[226,"полиграфические услуги"]
[226,"поддержание в постоянной готовности сил к реагированию на чс"]
[226,"поддержка мис \"медиалог\""]
[226,"доступ к электронным изданиям"]
[226,"подключение и обслуживание системы \"росметод\""]
[226,"доступ к электронным изданиям"]
[226,"подписка на периодические издания"]
[226,"проведение общественного мнения об уровне безопасности личности"]
[226,"проведение электромонтажных работ"]
[226,"программное обеспечение"]
[226,"размещение кабелей связи"]
[226,"разработка и распечатка плана эвакуации"]
[226,"реклама"]
[226,"сертификация услуг"]
[226,"связь,коммуникации"]
[226,"силы реагирования на чс"]
[226,"создание программного комплекса адаптированнного для локальных сетей общеобразовательных школ и сети интернет"]
[226,"стажировка студентов в чехии"]
[226,"сублецензионное вознаграждение"]
[226,"такелажные работы"]
[226,"банковское обслуживание"]
[226,"технический учет и инвентаризация"]
[226,"то вентиляционных систем"]
[226,"то электросетей"]
[226,"тревожная кнопка"]
[226,"тренинговая программа \"открытие\""]
[226,"услуги по гардеробному обслуживанию"]
[226,"услуги по организации участия в выставке \"образование и карьера\""]
[226,"услуги по подготовке команды квн"]
[226,"услуги по регистрации сми"]
[226,"услуги систем \"консультантплюс\""]
[226,"экспресс-почта"]
[226,"юридические услуги"]
[290,"услуги по составлению букетов"]
[]
[310,"замена электросчетчика"]
[310,"компьютеры"]
[310,"мебель"]
[310,"учебное оборудование"]
[310,"моноблок kraftway"]
[310,"монтаж системы кондиционирования"]
[310,"оргтехника"]
[]
[310,"сборно-разбрные перегородки"]
[310,"телефонные аппараты, коммутатор"]
[310,"шторы, карнизы"]
[340,"автозапчасти"]
[340,"бензин"]
[340,"бумага"]
[340,"гсм"]
[340,"дизельное топливо"]
[340,"запчасти"]
[340,"изготовление печати"]
[340,"картриджи"]
[340,"компьютерные комплектующие"]
[340,"медицинские товары"]
[340,"питьевая вода"]
[340,"продукты питания"]
[340,"расходные материалы для полиграфического оборудования"]
[340,"сантехнические товары"]
[340,"хозтовары"]
[340,"электротехнические товары"]
[340,"канцтовары"]